Workbook

Sheet паспорт
A1: ПАТ "УКРТРАНСГАЗ" | G1: ПАСПОРТ ФІЗИКО-ХІМІЧНИХ ПОКАЗНИКІВ ПРИРОДНОГО ГАЗУ № 688
A2: Філія "УМГ "ХАРКІВТРАНСГАЗ" | G2: переданого Херсонським ЛВУМГ та прийнятого ПАТ "Херсонгаз"
A3: Херсонське ЛВУМГ | G3: переданого Херсонським ЛВУМГ та прийнятого ПАТ " Херсонгаз" точка відбору ГРС м. Велика Олександрівка
A4: Вимірювальна хіміко-аналітична лабораторія | G4: Маршрут № 688
A5: Свідоцтво про атестацію РЧ 161/2015 дійсне до 01.01.2019 р.
K6: по газопроводу ШДО, ШДКРІ | V6: за період з | X6: 2017-05-01 | Z6: по | AA6: 2017-05-31
A9: Число місяця | B9: Компонентний склад, мол. % | N9: Фізико-хімічні показники газу обчислені на основі компонентного складу, 101,325 кПа | X9: Температура точки роси за вологою (Р = 3.92 МПа), °С | Y9: Температура точки роси за вуглеводнями, °С | Z9: Вміст сірководню, г/м3 | AA9: Вміст меркаптанової сірки, г/м3 | AB9: Вміст механічних домішок, г/м3
N10: Густина абсолютна, кг/м3,при 20 °С, | O10: Температура вимірювання/згоряння при 20/25°С
B11: метан, С1 | C11: етан, С2 | D11: пропан, С3 | E11: ізо-бутан, і-С4 | F11: н-бутан, н-С4 | G11: нео-пентан, нео-С5 | H11: ізо-пентан, і-С5 | I11: н-пентан, н-С5 | J11: гексани та вищі, С6+ | K11: кисень, О2 | L11: азот, N2 | M11: діоксид вуглецю, CО2 | O11: Теплота згоряння нижча | R11: Теплота згоряння вища | U11: Число Воббе вище
O12: ккал/м³ | P12: МДж/м³ | Q12: кВт⋅год/м³ | R12: ккал/м³ | S12: МДж/м³ | T12: кВт⋅год/м³ | U12: ккал/м³ | V12: МДж/м³ | W12: кВт⋅год/м³
A13: 1 | O13: =P13*238.8459 -> 8235.406632 | P13: 34.48 | Q13: =P13/3.6 -> 9.577777778 | R13: =S13*238.8459 -> 9126.301839 | S13: 38.21 | T13: =S13/3.6 -> 10.61388889 | U13: =V13/0.0041868 -> 11927.96408 | V13: 49.94 | W13: =V13/3.6 -> 13.87222222
A14: 2 | O14: 8235.406632 | P14: 34.48 | Q14: 9.577777778 | R14: 9126.301839 | S14: 38.21 | T14: 10.61388889 | U14: 11927.96408 | V14: 49.94 | W14: 13.87222222
A15: 3 | B15: 95.1955 | C15: 2.7134 | D15: 0.8726 | E15: 0.1357 | F15: 0.1323 | G15: 0.0014 | H15: 0.0243 | I15: 0.0168 | J15: 0.0151 | K15: 0.0047 | L15: 0.6696 | M15: 0.2187 | N15: 0.7064 | O15: 8256.902763 | P15: 34.57 | Q15: 9.602777778 | R15: 9147.79797 | S15: 38.3 | T15: 10.63888889 | U15: =V15/0.0041868 -> 11944.68329 | V15: 50.01 | W15: 13.89166667 | AD15: =IF(AC15=100,"ОК"," ") -> 
A16: 4 | B16: 95.1987 | C16: 2.694 | D16: 0.8684 | E16: 0.1353 | F16: 0.134 | G16: 0.0014 | H16: 0.0251 | I16: 0.0177 | J16: 0.0162 | K16: 0.0041 | L16: 0.6864 | M16: 0.2188 | N16: 0.7064 | O16: 8254.514304 | P16: 34.56 | Q16: 9.6 | R16: 9145.409511 | S16: 38.29 | T16: 10.63611111 | U16: =V16/0.0041868 -> 11942.29483 | V16: 50 | W16: 13.88888889 | X16: -18.5 | Y16: -15.7 | AD16: =IF(AC16=100,"ОК"," ") -> 
A17: 5 | B17: 95.1823 | C17: 2.6877 | D17: 0.8614 | E17: 0.1328 | F17: 0.1328 | G17: 0.0015 | H17: 0.0249 | I17: 0.0176 | J17: 0.0168 | K17: 0.0045 | L17: 0.7161 | M17: 0.2215 | N17: 0.7065 | O17: 8249.737386 | P17: 34.54 | Q17: 9.594444444 | R17: 9140.632593 | S17: 38.27 | T17: 10.63055556 | U17: 11935.12945 | V17: 49.97 | W17: 13.88055556 | AB17: не виявл.
A18: 6 | O18: 8249.737386 | P18: 34.54 | Q18: 9.594444444 | R18: 9140.632593 | S18: 38.27 | T18: 10.63055556 | U18: 11935.12945 | V18: 49.97 | W18: 13.88055556
A19: 7 | O19: 8249.737386 | P19: 34.54 | Q19: 9.594444444 | R19: 9140.632593 | S19: 38.27 | T19: 10.63055556 | U19: 11935.12945 | V19: 49.97 | W19: 13.88055556
A20: 8 | O20: 8249.737386 | P20: 34.54 | Q20: 9.594444444 | R20: 9140.632593 | S20: 38.27 | T20: 10.63055556 | U20: 11935.12945 | V20: 49.97 | W20: 13.88055556
A21: 9 | O21: 8249.737386 | P21: 34.54 | Q21: 9.594444444 | R21: 9140.632593 | S21: 38.27 | T21: 10.63055556 | U21: 11935.12945 | V21: 49.97 | W21: 13.88055556
A22: 10 | B22: 94.1487 | C22: 3.1407 | D22: 1.1292 | E22: 0.1675 | F22: 0.215 | G22: 0.002 | H22: 0.0475 | I22: 0.0374 | J22: 0.0387 | K22: 0.0039 | L22: 0.8042 | M22: 0.2651 | N22: 0.7169 | O22: 8340.498828 | P22: 34.92 | Q22: 9.7 | R22: 9236.170953 | S22: 38.67 | T22: 10.74166667 | U22: 11973.3448 | V22: 50.13 | W22: 13.925 | X22: -17.9 | Y22: -15
A23: 11 | B23: 94.3058 | C23: 3.064 | D23: 1.0896 | E23: 0.1634 | F23: 0.2045 | G23: 0.0019 | H23: 0.0455 | I23: 0.0359 | J23: 0.0407 | K23: 0.0038 | L23: 0.7857 | M23: 0.2591 | N23: 0.7156 | O23: 8328.556533 | P23: 34.87 | Q23: 9.686111111 | R23: 9226.617117 | S23: 38.63 | T23: 10.73055556 | U23: 11968.56788 | V23: 50.11 | W23: 13.91944444 | Z23: <0,0001 | AA23: 0.0015
A24: 12 | B24: 95.3736 | C24: 2.5745 | D24: 0.842 | E24: 0.1309 | F24: 0.135 | G24: 0.0015 | H24: 0.0261 | I24: 0.0189 | J24: 0.0176 | K24: 0.0038 | L24: 0.6739 | M24: 0.2021 | N24: 0.7052 | O24: 8244.960468 | P24: 34.52 | Q24: 9.588888889 | R24: 9138.244134 | S24: 38.26 | T24: 10.62777778 | U24: 11942.29483 | V24: 50 | W24: 13.88888889
A25: 13 | B25: 95.1268 | C25: 2.7067 | D25: 0.8942 | E25: 0.1373 | F25: 0.1464 | G25: 0.0015 | H25: 0.0291 | I25: 0.0214 | J25: 0.02 | K25: 0.005 | L25: 0.6929 | M25: 0.2188 | N25: 0.7074 | O25: 8261.679681 | P25: 34.59 | Q25: 9.608333333 | R25: 9154.963347 | S25: 38.33 | T25: 10.64722222 | U25: 11947.07175 | V25: 50.02 | W25: 13.89444444
A26: 14 | O26: 8261.679681 | P26: 34.59 | Q26: 9.608333333 | R26: 9154.963347 | S26: 38.33 | T26: 10.64722222 | U26: 11947.07175 | V26: 50.02 | W26: 13.89444444
A27: 15 | B27: 94.434 | C27: 3.0278 | D27: 1.0511 | E27: 0.1571 | F27: 0.1898 | G27: 0.0018 | H27: 0.0413 | I27: 0.032 | J27: 0.033 | K27: 0.0048 | L27: 0.7718 | M27: 0.2557 | N27: 0.714 | O27: 8314.225779 | P27: 34.81 | Q27: 9.669444444 | R27: 9209.897904 | S27: 38.56 | T27: 10.71111111 | U27: 11963.79096 | V27: 50.09 | W27: 13.91388889
A28: 16 | B28: 94.593 | C28: 2.8982 | D28: 1.0001 | E28: 0.149 | F28: 0.1829 | G28: 0.0018 | H28: 0.0411 | I28: 0.0324 | J28: 0.0361 | K28: 0.0048 | L28: 0.8141 | M28: 0.2465 | N28: 0.7126 | O28: 8295.118107 | P28: 34.73 | Q28: 9.647222222 | R28: 9190.790232 | S28: 38.48 | T28: 10.68888889 | U28: 11949.46021 | V28: 50.03 | W28: 13.89722222 | Z28: <0,0001 | AA28: 0.0008
A29: 17 | B29: 94.3253 | C29: 3.0003 | D29: 1.0661 | E29: 0.1573 | F29: 0.2055 | G29: 0.0019 | H29: 0.0481 | I29: 0.0383 | J29: 0.0431 | K29: 0.0046 | L29: 0.856 | M29: 0.2535 | N29: 0.7153 | O29: 8316.614238 | P29: 34.82 | Q29: 9.672222222 | R29: 9212.286363 | S29: 38.57 | T29: 10.71388889 | U29: 11956.62559 | V29: 50.06 | W29: 13.90555556
A30: 18 | B30: 94.44 | C30: 2.9908 | D30: 1.0449 | E30: 0.1564 | F30: 0.1937 | G30: 0.0019 | H30: 0.0441 | I30: 0.0348 | J30: 0.0398 | K30: 0.0045 | L30: 0.7958 | M30: 0.2533 | N30: 0.7142 | O30: 8314.225779 | P30: 34.81 | Q30: 9.669444444 | R30: 9209.897904 | S30: 38.56 | T30: 10.71111111 | U30: 11959.01404 | V30: 50.07 | W30: 13.90833333 | X30: -18.2 | Y30: -16
A31: 19 | B31: 94.6099 | C31: 2.9236 | D31: 1.001 | E31: 0.1503 | F31: 0.1796 | G31: 0.0018 | H31: 0.0399 | I31: 0.031 | J31: 0.0354 | K31: 0.0044 | L31: 0.7726 | M31: 0.2505 | N31: 0.7125 | O31: 8299.895025 | P31: 34.75 | Q31: 9.652777778 | R31: 9193.178691 | S31: 38.49 | T31: 10.69166667 | U31: 11954.23713 | V31: 50.05 | W31: 13.90277778
A32: 20 | O32: 8299.895025 | P32: 34.75 | Q32: 9.652777778 | R32: 9193.178691 | S32: 38.49 | T32: 10.69166667 | U32: 11954.23713 | V32: 50.05 | W32: 13.90277778 | AD32: =IF(AC32=100,"ОК"," ") -> 
A33: 21 | O33: 8299.895025 | P33: 34.75 | Q33: 9.652777778 | R33: 9193.178691 | S33: 38.49 | T33: 10.69166667 | U33: 11954.23713 | V33: 50.05 | W33: 13.90277778
A34: 22 | B34: 94.1185 | C34: 3.0821 | D34: 1.1041 | E34: 0.1613 | F34: 0.2168 | G34: 0.0021 | H34: 0.052 | I34: 0.0417 | J34: 0.0481 | K34: 0.0045 | L34: 0.6975 | M34: 0.2714 | N34: 0.7172 | O34: 8328.556533 | P34: 34.87 | Q34: 9.686111111 | R34: 9224.228658 | S34: 38.62 | T34: 10.72777778 | U34: 11954.23713 | V34: 50.05 | W34: 13.90277778
A35: 23 | B35: 94.5002 | C35: 2.9973 | D35: 1.0325 | E35: 0.1538 | F35: 0.185 | G35: 0.0018 | H35: 0.0413 | I35: 0.0323 | J35: 0.037 | K35: 0.0037 | L35: 0.7587 | M35: 0.2562 | N35: 0.7135 | O35: 8311.83732 | P35: 34.8 | Q35: 9.666666667 | R35: 9207.509445 | S35: 38.55 | T35: 10.70833333 | U35: 11961.4025 | V35: 50.08 | W35: 13.91111111 | Z35: <0,0001 | AA35: 0.0011 | AD35: =IF(AC35=100,"ОК"," ") -> 
A36: 24 | B36: 95.0948 | C36: 2.7897 | D36: 0.8964 | E36: 0.1374 | F36: 0.1372 | G36: 0.0014 | H36: 0.0258 | I36: 0.0183 | J36: 0.0164 | K36: 0.0039 | L36: 0.6546 | M36: 0.2241 | N36: 0.7074 | O36: 8266.456599 | P36: 34.61 | Q36: 9.613888889 | R36: 9159.740265 | S36: 38.35 | T36: 10.65277778 | U36: 11951.84867 | V36: 50.04 | W36: 13.9
A37: 25 | B37: 95.1211 | C37: 2.7987 | D37: 0.903 | E37: 0.1392 | F37: 0.1336 | G37: 0.0014 | H37: 0.0237 | I37: 0.0161 | J37: 0.0121 | K37: 0.0041 | L37: 0.6264 | M37: 0.2206 | N37: 0.7071 | O37: 8268.845058 | P37: 34.62 | Q37: 9.616666667 | R37: 9162.128724 | S37: 38.36 | T37: 10.65555556 | U37: 11956.62559 | V37: 50.06 | W37: 13.90555556 | X37: -15.6 | Y37: -13.6
A38: 26 | B38: 95.2874 | C38: 2.6623 | D38: 0.8868 | E38: 0.1379 | F38: 0.1355 | G38: 0.0014 | H38: 0.0242 | I38: 0.0167 | J38: 0.0128 | K38: 0.0041 | L38: 0.6283 | M38: 0.2025 | N38: 0.7059 | O38: 8259.291222 | P38: 34.58 | Q38: 9.605555556 | R38: 9152.574888 | S38: 38.32 | T38: 10.64444444 | U38: 11954.23713 | V38: 50.05 | W38: 13.90277778
A39: 27 | O39: 8259.291222 | P39: 34.58 | Q39: 9.605555556 | R39: 9152.574888 | S39: 38.32 | T39: 10.64444444 | U39: 11954.23713 | V39: 50.05 | W39: 13.90277778
A40: 28 | O40: 8259.291222 | P40: 34.58 | Q40: 9.605555556 | R40: 9152.574888 | S40: 38.32 | T40: 10.64444444 | U40: 11954.23713 | V40: 50.05 | W40: 13.90277778
A41: 29 | B41: 94.2376 | C41: 3.1111 | D41: 1.1005 | E41: 0.1629 | F41: 0.2041 | G41: 0.0019 | H41: 0.0462 | I41: 0.0364 | J41: 0.0391 | K41: 0.004 | L41: 0.7943 | M41: 0.2618 | N41: 0.716 | O41: 8330.944992 | P41: 34.88 | Q41: 9.688888889 | R41: 9229.005576 | S41: 38.64 | T41: 10.73333333 | U41: 11968.56788 | V41: 50.11 | W41: 13.91944444
A42: 30 | B42: 94.2273 | C42: 3.0964 | D42: 1.0956 | E42: 0.1613 | F42: 0.2055 | G42: 0.002 | H42: 0.0472 | I42: 0.0377 | J42: 0.0441 | K42: 0.004 | L42: 0.8101 | M42: 0.2688 | N42: 0.7162 | O42: 8330.944992 | P42: 34.88 | Q42: 9.688888889 | R42: 9226.617117 | S42: 38.63 | T42: 10.73055556 | U42: 11966.17942 | V42: 50.1 | W42: 13.91666667 | X42: -10.3 | Y42: -8 | Z42: <0,0001 | AA42: 0.0029
A43: 31 | B43: 95.04 | C43: 2.7279 | D43: 0.9142 | E43: 0.1401 | F43: 0.1474 | G43: 0.0016 | H43: 0.0286 | I43: 0.0207 | J43: 0.0201 | K43: 0.0068 | L43: 0.7135 | M43: 0.2391 | N43: 0.7082 | O43: 8264.06814 | P43: 34.6 | Q43: 9.611111111 | R43: 9157.351806 | S43: 38.34 | T43: 10.65 | U43: 11942.29483 | V43: 50 | W43: 13.88888889 | AB43: не виявл.
A44: Рівень одоризації відповідає чинним нормативним документам | O44: =SUMPRODUCT(O13:O43,' розрахунок'!E7:E37)/' розрахунок'!E38 -> 8282.01986 | P44: =SUMPRODUCT(P13:P43,' розрахунок'!E7:E37)/' розрахунок'!E38 -> 34.67516026 | Q44: =SUMPRODUCT(Q13:Q43,' розрахунок'!E7:E37)/' розрахунок'!E38 -> 9.631988961 | R44: =SUMPRODUCT(R13:R43,' розрахунок'!E7:E37)/' розрахунок'!E38 -> 9175.670612 | S44: =SUMPRODUCT(S13:S43,' розрахунок'!E7:E37)/' розрахунок'!E38 -> 38.41669718 | T44: =SUMPRODUCT(T13:T43,' розрахунок'!E7:E37)/' розрахунок'!E38 -> 10.67130477
H45: Середньозважене значення теплоти згоряння:
B48: Начальника Херсонськго ЛВУМГ Доскоч М.В. 01.06.2017
C49: Підрозділу підприємства, якому підпорядкована лабораторія | O49: прізвище | R49: підпис | V49: дата
B50: Завідувач лабораторії Камишанова О.С. 01.06.2017
C51: Лабораторія, де здійснювалось вимірювання газу | O51: прізвище | R51: підпис | V51: дата
B52: Начальника служби ГВ та М Скавронський Є.К. 01.06.2017
C53: Підрозділу, відповідального за облік газу за маршрутом | O53: прізвище | R53: підпис | V53: дата

Sheet розрахунок
A2: Додаток до Паспорту фізико-хімічних показників
D3: прирого газу по маршруту № 688
A4: Число місяця | B4: Теплота згоряння вища, МДж/м3 | C4: Херсонська область | E4: Загальний обсяг газу, м3
C5: Обсяг газу переданого за добу, м3
C6: ГРС м.Велика Олександрівка | D6: ГРС с. Кочубеївка
A7: 1 | B7: 38.21 | C7: 4934 | D7: 719 | E7: =SUM(C7:D7) -> 5653
A8: 2 | B8: 38.21 | C8: 4524 | D8: 629 | E8: 5153
A9: 3 | B9: 38.3 | C9: 4023 | D9: 582 | E9: 4605
A10: 4 | B10: 38.29 | C10: 3829 | D10: 537 | E10: 4366
A11: 5 | B11: 38.27 | C11: 3828 | D11: 562 | E11: 4390
A12: 6 | B12: 38.27 | C12: 3916 | D12: 566 | E12: 4482
A13: 7 | B13: 38.27 | C13: 3831 | D13: 571 | E13: 4402
A14: 8 | B14: 38.27 | C14: 4276 | D14: 604 | E14: 4880
A15: 9 | B15: 38.27 | C15: 3976 | D15: 563 | E15: 4539
A16: 10 | B16: 38.67 | C16: 5291 | D16: 702 | E16: 5993
A17: 11 | B17: 38.63 | C17: 7076 | D17: 1115 | E17: 8191
A18: 12 | B18: 38.26 | C18: 6542 | D18: 931 | E18: 7473
A19: 13 | B19: 38.33 | C19: 5307 | D19: 796 | E19: 6103
A20: 14 | B20: 38.33 | C20: 7831 | D20: 1237 | E20: 9068
A21: 15 | B21: 38.56 | C21: 6223 | D21: 901 | E21: 7124
A22: 16 | B22: 38.48 | C22: 4098 | D22: 636 | E22: 4734
A23: 17 | B23: 38.57 | C23: 4706 | D23: 678 | E23: 5384
A24: 18 | B24: 38.56 | C24: 4677 | D24: 692 | E24: 5369
A25: 19 | B25: 38.49 | C25: 4651 | D25: 728 | E25: 5379
A26: 20 | B26: 38.49 | C26: 6601 | D26: 1018 | E26: 7619
A27: 21 | B27: 38.49 | C27: 5384 | D27: 779 | E27: 6163
A28: 22 | B28: 38.62 | C28: 5954 | D28: 855 | E28: 6809
A29: 23 | B29: 38.55 | C29: 4592 | D29: 639 | E29: 5231
A30: 24 | B30: 38.35 | C30: 4199 | D30: 618 | E30: 4817
A31: 25 | B31: 38.36 | C31: 4098 | D31: 399 | E31: 4497
A32: 26 | B32: 38.32 | C32: 3733 | D32: 499 | E32: 4232
A33: 27 | B33: 38.32 | C33: 4008 | D33: 569 | E33: 4577
A34: 28 | B34: 38.32 | C34: 3788 | D34: 534 | E34: 4322
A35: 29 | B35: 38.64 | C35: 3241 | D35: 467 | E35: 3708
A36: 30 | B36: 38.63 | C36: 3182 | D36: 452 | E36: 3634
A37: 31 | B37: 38.34 | C37: 3268 | D37: 441 | E37: 3709
A38: Загальний обсяг газу, м3 | C38: =SUM(C7:C37) -> 145587 | D38: =SUM(D7:D37) -> 21019 | E38: =SUM(E7:E37) -> 166606
A39: Енергія, МДж | C39: =SUMPRODUCT(B7:B37,C7:C37) -> 5592948.5 | D39: =SUMPRODUCT(B7:B37,D7:D37) -> 807503.75 | E39: =SUMPRODUCT(B7:B37,E7:E37) -> 6400452.25
A40: Теплота згоряння (середньозважене значення за місяць), МДж/м³ | C40: =C39/C38 -> 38.41653788 | D40: =D39/D38 -> 38.41780056 | E40: =E39/E38 -> 38.41669718
A41: Теплота згоряння (середньозважене значення за місяць), ккал/м³ | C41: =C40*238.8459 -> 9175.632564 | D41: =D40*238.8459 -> 9175.934151 | E41: =E40*238.8459 -> 9175.670612
A42: Теплота згоряння (середньозважене значення за місяць), кВт*год./м³ | C42: =C40/3.6 -> 10.67126052 | D42: =D40/3.6 -> 10.67161127 | E42: =E40/3.6 -> 10.67130477

Sheet додаток
A2: Додаток до Паспорту фізико-хімічних показників природного газу №688
A4: Область | B4: ГРС, прямий споживач | C4: Cередньозважене значення вищої теплоти згоряння
C5: МДж/м³ | D5: ккал/м³ | E5: кВт*год./м³
A6: Херсонська область | B6: =' розрахунок'!C6 -> ГРС м.Велика Олександрівка | C6: 38.42 | D6: 9176 | E6: 10.67
B7: ГРС Вороновиця
B8: ГРС Побережне
B9: ГРС Іллінці
B10: ГРС Тягун
B11: ГРС Оратів
B12: ГРС Осична
B13: ГРС Росоша
B14: ГРС Погребище
B15: ГРС Вороновиця
B16: ГРС Побережне
B17: ГРС Іллінці
B18: ГРС Тягун
B19: ГРС Оратів
B20: ГРС Осична
B21: ГРС Росоша
B22: ГРС Погребище
B23: ГРС Вороновиця
B24: ГРС Побережне
B25: ГРС Іллінці
B26: ГРС Тягун
B27: ГРС Оратів
B28: ГРС Осична
B29: ГРС Росоша
B30: ГРС Погребище
B31: ГРС Вороновиця
B32: ГРС Побережне
B33: ГРС Іллінці
B34: ГРС Тягун
B35: ГРС Оратів
B36: ГРС Осична
B37: ГРС Росоша
B38: ГРС Погребище
B39: =' розрахунок'!D6 -> ГРС с. Кочубеївка | C39: 38.42 | D39: 9176 | E39: 10.67
A40: Середньозважене значення вищої теплоти згоряння по маршруту № 688 | C40: 38.42 | D40: 9176 | E40: 10.67
A44: Начальника Херсонського ЛВУМГ | D44: Доскоч М.В. | F44: 2017-06-01
A45: Підрозділу підприємства, якому підпорядкована лабораторія | D45: прізвище | E45: підпис | F45: дата
A46: Завідувач лабораторії | D46: Камишанова О.С. | F46: 2017-06-01
A47: Лабораторія, де здійснювалось вимірювання газу | D47: прізвище | E47: підпис | F47: дата
A48: Начальника служби ГВ та М | D48: Скавронський Є.К. | F48: 2017-06-01
A49: Підрозділу, відповідального за облік газу за маршрутом | D49: прізвище | E49: підпис | F49: дата

Sheet variablesList (hidden)
A1: 3 | B1: x:\gaysin | C1: 10, 11, 24, 25, 127, 128, 132, 180, 207, 215 | D1: x:\
B2: x:\Illinci
B3: x:\Talne

Sheet Лист1 (hidden)
A1: Константиновка УГГ (осн.) за 2/17. | AD1: Краматорск УГГ (осн.) за 2/17. | AU1: Бахмут УГГ (осн.) за 2/17. | CB1: Покровск УГГ (осн.) за 2/17. | DC1: Славянск УГГ (осн.) за 2/17. | DV1: ХАРЬКОВГАЗ (осн.) за 2/17. | EM1: АГНКС 1 (осн.) за 2/17. | FB1: Кнауф (осн.) за 2/17. | FI1: ЗЦМ (осн.) за 2/17. | FN1: Mashzavod (осн.) за 2/17. | FQ1: ГРС 1 Курахово (осн.) за 2/17. | FX1: НКМЗ (осн.) за 2/17. | GC1: Шидловка (Флоутек) (осн.) за 2/17.
A2: День | C2: Авдеевка (счетчик) | E2: Авдеевка (перепад) | G2: dzerginsk | I2: Kobyt_2 | K2: Koprom_2 | M2: Komz_2 | O2: Konstantinovski | Q2: Lenina | S2: Очеретино перепад | U2: Очеретино счетчик | W2: chasovyar2 | Y2: sliah | AA2: Sherb_PTF | AC2: Константиновка УГГ | AD2: День | AF2: OCHERETINO | AH2: Drugkovka | AJ2: Kondratevka | AL2: BYT | AN2: PROM | AP2: krmz | AR2: Promin | AT2: Краматорск УГГ | AU2: День | AW2: art1_1 | AY2: art1_2 | BA2: art2 | BC2: bahmutka | BE2: Gorkogo | BG2: Kirova | BI2: Kazachenko | BK2: Покровское село | BM2: PrKirova | BO2: Seversk | BQ2: Timiryazevo | BS2: UGL BYT | BU2: Ugl2-2 | BW2: Ugl_4 | BY2: chasovyar1 | CA2: Бахмут УГГ | CB2: День | CD2: Krasnoarme | CF2: Курахово-2 УЗ1 | CH2: Курахово-2 | CJ2: Селидово 1(перепад) | CL2: Владимировка | CN2: Волноваха | CP2: Донское | CR2: Еленовка | CT2: Угледар | CV2: Ольгинка | CX2: Новотроицкое (УЗ) | CZ2: Чермалык | DB2: Покровск УГГ | DC2: День | DE2: liman | DG2: malinovka | DI2: Правдинская ПТФ | DK2: ray-aleks | DM2: SLTES1 | DO2: SLTES2 | DQ2: SLAVGRSBYT | DS2: Slaviansk | DU2: Славянск УГГ | DV2: День | DX2: Ду80 | DZ2: Ду150 | EB2: bragkovka | ED2: Govten | EF2: IZIUM | EH2: Петровское | EJ2: Stepok | EL2: ПАО ХАРЬКОВГАЗ | EM2: День | EO2: DrugAGNKS1 | EQ2: DrugAGNKS2 | ES2: Slav.AGNKS1 | EU2: KramatAGNKS1 | EW2: Константиновка | EY2: AGNKS | FA2: АГНКС 1 | FB2: День | FD2: Кнауф 1 | FF2: Кнауф 2 | FH2: Покровское Кнауф | FI2: День | FK2: ART3 | FM2: ГРС Артемовск ЗЦМ | FN2: День | FP2: Mashzavod | FQ2: День | FS2: Курахово-1 (перепад) | FU2: Курахово-1 (счетчик) | FW2: ГРС 1 Курахово | FX2: День | FZ2: NKMZ | GB2: ГРС НКМЗ | GC2: День | GE2: SMIZ | GG2: Shidlovka | GI2: ГРС Шидловка (Флоутек)
A3: 1 | C3: 0 | E3: 296772.28 | F3: A | G3: 257369.09 | I3: 0 | K3: 628383.44 | M3: 0 | O3: 7346.88 | P3: A | Q3: 8906.29 | S3: 16544.06 | U3: 0 | W3: 5793.38 | Y3: 17600.61 | AA3: 10071.77 | AB3: A | AC3: 1248787.81 | AD3: 1 | AF3: 6026.29 | AH3: 383894.81 | AJ3: 57216.55 | AL3: 138976.08 | AN3: 972769.56 | AO3: A | AP3: 26771.2 | AR3: 16367.02 | AS3: A | AT3: 1602021.52 | AU3: 1 | AW3: 258201.58 | AY3: 184512.16 | BA3: 0 | BC3: 133415.58 | BE3: 12385.56 | BG3: 4182.12 | BH3: A | BI3: 9691.73 | BK3: 6349.19 | BM3: 5816.97 | BO3: 48443.7 | BQ3: 3955.84 | BS3: 73588.79 | BU3: 0 | BW3: 0 | BY3: 104260.26 | BZ3: A | CA3: 844803.47 | CB3: 1 | CD3: 601648.06 | CF3: 25828.04 | CH3: 0.4 | CJ3: 103688.76 | CL3: 45404.76 | CN3: 129714.5 | CP3: 36512.54 | CR3: 8838.33 | CT3: 108782.99 | CV3: 7468.16 | CX3: 22300.64 | CZ3: 8432.68 | DB3: 1098619.86 | DC3: 1 | DD3: A | DE3: 163466.94 | DG3: 4452.74 | DI3: 13352.87 | DK3: 2333.62 | DL3: A | DM3: 102614.02 | DO3: 0 | DQ3: 14975.53 | DS3: 765505.25 | DT3: A | DU3: 1066700.95 | DV3: 1 | DX3: 0 | DZ3: 67802.32 | EB3: 9187.37 | ED3: 6577.76 | EF3: 335646.22 | EH3: 20390.42 | EJ3: 10589.57 | EL3: 450193.66 | EM3: 1 | EN3: A | EO3: 1584.2 | EP3: A | EQ3: 1.71 | ER3: A | ES3: 730.22 | ET3: A | EU3: 2684.53 | EV3: A | EW3: 2740.47 | EX3: A | EY3: 2661.1 | EZ3: A | FA3: 10402.23 | FB3: 1 | FD3: 0.32 | FF3: 123422.39 | FH3: 123422.71 | FI3: 1 | FK3: 7730.79 | FM3: 7730.79 | FN3: 1 | FP3: 34181.42 | FQ3: 1 | FR3: A | FS3: 889.19 | FU3: 7.31 | FV3: A | FW3: 896.49 | FX3: 1 | FY3: A | FZ3: 84971.74 | GA3: A | GB3: 84971.74 | GC3: 1 | GD3: A | GE3: 4126.13 | GG3: 0 | GH3: A | GI3: 4126.13
A4: 2 | C4: 0 | E4: 308008.63 | F4: B | G4: 239971.95 | H4: B | I4: 0 | J4: B | K4: 589944.44 | L4: B | M4: 0 | N4: B | O4: 6940.24 | P4: B | Q4: 8228 | R4: B | S4: 15452.49 | T4: B | U4: 0 | V4: B | W4: 5328.33 | X4: B | Y4: 15545.2 | Z4: B | AA4: 9100.78 | AB4: B | AC4: 1198520.05 | AD4: 2 | AE4: B | AF4: 5505.53 | AG4: AB | AH4: 349797.63 | AI4: B | AJ4: 55304.66 | AK4: B | AL4: 135658.31 | AM4: B | AN4: 1009406.88 | AO4: AB | AP4: 23067.22 | AQ4: B | AR4: 14992.2 | AS4: AB | AT4: 1593732.43 | AU4: 2 | AV4: B | AW4: 238344.98 | AX4: B | AY4: 170263.84 | AZ4: B | BA4: 0 | BB4: B | BC4: 112703.1 | BD4: B | BE4: 10946.76 | BF4: B | BG4: 3892.4 | BH4: B | BI4: 9035.07 | BJ4: B | BK4: 5801.75 | BL4: B | BM4: 5321.77 | BN4: B | BO4: 44974.09 | BP4: B | BQ4: 3793.16 | BR4: B | BS4: 68866.17 | BT4: B | BU4: 0 | BV4: B | BW4: 0 | BX4: B | BY4: 97247.68 | BZ4: B | CA4: 771190.79 | CB4: 2 | CC4: B | CD4: 563518.38 | CE4: AB | CF4: 17527.22 | CG4: B | CH4: 0.15 | CI4: B | CJ4: 96632.61 | CK4: B | CL4: 42638.29 | CM4: B | CN4: 119442.13 | CO4: B | CP4: 35804.36 | CQ4: B | CR4: 8071.75 | CS4: B | CT4: 102019.34 | CV4: 6877.63 | CW4: B | CX4: 19717.68 | CY4: B | CZ4: 7699.05 | DA4: AB | DB4: 1019948.59 | DC4: 2 | DD4: AB | DE4: 151350.38 | DF4: B | DG4: 4106.76 | DH4: B | DI4: 13283.9 | DJ4: B | DK4: 2256.81 | DL4: AB | DM4: 64324.08 | DN4: B | DO4: 0 | DP4: B | DQ4: 14133.67 | DR4: B | DS4: 701031.69 | DT4: AB | DU4: 950487.28 | DV4: 2 | DW4: B | DX4: 0 | DY4: B | DZ4: 61485.21 | EA4: B | EB4: 8317.99 | EC4: B | ED4: 5904.82 | EE4: B | EF4: 304756.63 | EG4: B | EH4: 18309.85 | EI4: B | EJ4: 9706.89 | EK4: B | EL4: 408481.39 | EM4: 2 | EN4: AB | EO4: 1708.27 | EP4: AB | EQ4: 0.81 | ER4: AB | ES4: 741.36 | ET4: AB | EU4: 2989.43 | EV4: AB | EW4: 2637.44 | EX4: AB | EY4: 2809.09 | EZ4: AB | FA4: 10886.4 | FB4: 2 | FC4: AB | FD4: 132075.97 | FE4: AB | FF4: 736.74 | FG4: AB | FH4: 132812.7 | FI4: 2 | FJ4: B | FK4: 8734.31 | FL4: B | FM4: 8734.31 | FN4: 2 | FO4: AB | FP4: 27287.37 | FQ4: 2 | FR4: AB | FS4: 728.85 | FT4: B | FU4: 0 | FV4: AB | FW4: 728.85 | FX4: 2 | FY4: AB | FZ4: 104713.02 | GA4: AB | GB4: 104713.02 | GC4: 2 | GD4: B | GE4: 4366.45 | GF4: B | GG4: 0 | GH4: B | GI4: 4366.45
A5: 3 | C5: 0 | E5: 268725.66 | G5: 223240.58 | I5: 0 | K5: 565824 | M5: 0 | O5: 6641.52 | P5: A | Q5: 7756.95 | S5: 15100.34 | U5: 0 | W5: 5020 | Y5: 14877.94 | AA5: 8799.9 | AB5: A | AC5: 1115986.88 | AD5: 3 | AF5: 5268.37 | AH5: 322981.28 | AJ5: 52818.11 | AL5: 131295.27 | AN5: 948077.94 | AO5: A | AP5: 11257.16 | AR5: 14362.19 | AS5: A | AT5: 1486060.31 | AU5: 3 | AW5: 215157.31 | AY5: 153456.89 | BA5: 0 | BC5: 115719.71 | BE5: 10709.08 | BG5: 3722.22 | BI5: 8091.6 | BK5: 5571.23 | BM5: 5284.08 | BO5: 43131.04 | BQ5: 3557.68 | BS5: 63595.97 | BU5: 0 | BW5: 0 | BY5: 90017.67 | CA5: 718014.49 | CB5: 3 | CD5: 516288.53 | CE5: A | CF5: 15040.82 | CH5: 0.09 | CJ5: 89801.43 | CL5: 41331.44 | CN5: 114134.56 | CP5: 33304.08 | CR5: 7758.1 | CT5: 88881.6 | CV5: 6533.1 | CX5: 18600.57 | CZ5: 7103.26 | DA5: A | DB5: 938777.59 | DC5: 3 | DD5: A | DE5: 139973.63 | DG5: 3941.75 | DI5: 11560.05 | DK5: 2195.53 | DL5: A | DM5: 37725.43 | DO5: 0 | DQ5: 13722.9 | DS5: 669781.5 | DT5: A | DU5: 878900.78 | DV5: 3 | DX5: 0 | DZ5: 59417.72 | EB5: 8109.28 | ED5: 5822.25 | EF5: 286266.56 | EH5: 17706.77 | EJ5: 9425.08 | EL5: 386747.67 | EM5: 3 | EN5: A | EO5: 1764.71 | EP5: A | EQ5: 0.64 | ER5: A | ES5: 337.51 | ET5: A | EU5: 2177.03 | EV5: A | EW5: 3317.51 | EX5: A | EY5: 2911.59 | EZ5: A | FA5: 10508.99 | FB5: 3 | FD5: 71265.45 | FF5: 0.11 | FH5: 71265.55 | FI5: 3 | FJ5: A | FK5: 6355.84 | FL5: A | FM5: 6355.84 | FN5: 3 | FP5: 25828.59 | FQ5: 3 | FR5: A | FS5: 689.76 | FU5: 0 | FV5: A | FW5: 689.76 | FX5: 3 | FY5: A | FZ5: 101416.46 | GA5: A | GB5: 101416.46 | GC5: 3 | GD5: A | GE5: 3670.61 | GF5: A | GG5: 9.15 | GH5: A | GI5: 3679.76
A6: 4 | C6: 0 | E6: 221125.63 | G6: 202391.39 | I6: 0 | K6: 491736.28 | M6: 0 | O6: 6025.63 | Q6: 7123.18 | S6: 14091.7 | U6: 0 | W6: 4581.82 | Y6: 13305.09 | AA6: 8199.24 | AC6: 968579.96 | AD6: 4 | AF6: 4822.77 | AH6: 279040.78 | AJ6: 48361.34 | AL6: 123053.66 | AN6: 895778.06 | AO6: A | AP6: 9485.53 | AQ6: A | AR6: 12877.41 | AS6: A | AT6: 1373419.56 | AU6: 4 | AW6: 189237.92 | AY6: 135280.09 | BA6: 0 | BC6: 115637.95 | BE6: 9485.72 | BG6: 3449.96 | BI6: 7334.51 | BK6: 5141.95 | BM6: 4732.52 | BN6: A | BO6: 38127.3 | BQ6: 3014.36 | BS6: 55897.25 | BU6: 0 | BW6: 0 | BY6: 82919.63 | BZ6: A | CA6: 650259.16 | CB6: 4 | CD6: 449957.66 | CE6: A | CF6: 13040.16 | CH6: 0.03 | CJ6: 75788.57 | CL6: 38716.72 | CN6: 103171.66 | CP6: 29090.08 | CR6: 7159.68 | CT6: 82834.27 | CV6: 5974.22 | CX6: 15456.64 | CZ6: 6734.38 | DA6: A | DB6: 827924.07 | DC6: 4 | DD6: A | DE6: 114539.31 | DG6: 3578.79 | DI6: 10742.21 | DK6: 1996.35 | DL6: A | DM6: 27997.6 | DO6: 0 | DQ6: 12580.99 | DS6: 575078.81 | DT6: A | DU6: 746514.06 | DV6: 4 | DX6: 0 | DZ6: 53401.4 | EB6: 7500.14 | ED6: 5280.29 | EF6: 259105.48 | EH6: 16218.04 | EJ6: 8662.32 | EL6: 350167.67 | EM6: 4 | EN6: A | EO6: 1273.85 | EP6: A | EQ6: 0.57 | ER6: A | ES6: 219.09 | ET6: A | EU6: 942.25 | EV6: A | EW6: 2681.2 | EX6: A | EY6: 2138.91 | EZ6: A | FA6: 7255.87 | FB6: 4 | FD6: 12567.21 | FF6: 0 | FH6: 12567.21 | FI6: 4 | FK6: 563.54 | FM6: 563.54 | FN6: 4 | FO6: A | FP6: 12937.09 | FQ6: 4 | FR6: A | FS6: 3541.84 | FU6: 0 | FV6: A | FW6: 3541.84 | FX6: 4 | FY6: A | FZ6: 114267.99 | GA6: A | GB6: 114267.99 | GC6: 4 | GE6: 4336.99 | GG6: 0 | GI6: 4336.99
A7: 5 | C7: 0 | E7: 220940.64 | G7: 192908.3 | I7: 0 | K7: 489540.44 | M7: 0 | O7: 5712.18 | P7: A | Q7: 6757.35 | S7: 13528.14 | U7: 0 | W7: 4449.5 | Y7: 12771.67 | AA7: 7838.34 | AB7: A | AC7: 954446.55 | AD7: 5 | AF7: 4628.26 | AH7: 284386.22 | AJ7: 47097.6 | AL7: 123381.3 | AN7: 901654.88 | AO7: A | AP7: 8750.78 | AR7: 12710.45 | AS7: A | AT7: 1382609.49 | AU7: 5 | AW7: 188806.45 | AY7: 134848.77 | BA7: 0 | BC7: 115265.72 | BE7: 9104.48 | BF7: A | BG7: 3304.98 | BI7: 7193.84 | BK7: 4950.89 | BM7: 4610.48 | BO7: 37341.84 | BQ7: 2581.25 | BS7: 57294.21 | BT7: A | BU7: 101791.75 | BV7: A | BW7: 13331.08 | BY7: 81319.66 | BZ7: A | CA7: 761745.4 | CB7: 5 | CD7: 465378.91 | CE7: A | CF7: 13702.99 | CH7: 0.08 | CJ7: 79729.52 | CL7: 46994.4 | CN7: 101792.77 | CP7: 27841.05 | CR7: 6897.23 | CT7: 78894.53 | CV7: 5623.21 | CX7: 16443.2 | CZ7: 6284.01 | DA7: A | DB7: 849581.9 | DC7: 5 | DD7: A | DE7: 121261.67 | DG7: 3477.3 | DI7: 10700.88 | DK7: 2323.19 | DL7: A | DM7: 19616.05 | DO7: 0 | DQ7: 12480.69 | DS7: 599734.56 | DT7: A | DU7: 769594.34 | DV7: 5 | DX7: 0 | DZ7: 52633.82 | EB7: 7082.02 | ED7: 5012.48 | EF7: 253749.45 | EH7: 16165.64 | EJ7: 8723.25 | EL7: 343366.67 | EM7: 5 | EN7: A | EO7: 804.8 | EP7: A | EQ7: 0.37 | ER7: A | ES7: 161.51 | ET7: A | EU7: 1008.38 | EV7: A | EW7: 2213.8 | EX7: A | EY7: 1814.39 | EZ7: A | FA7: 6003.25 | FB7: 5 | FD7: 36767.92 | FF7: 0 | FH7: 36767.92 | FI7: 5 | FJ7: A | FK7: 1659.93 | FL7: A | FM7: 1659.93 | FN7: 5 | FP7: 12967.46 | FQ7: 5 | FR7: A | FS7: 90548.8 | FU7: 0 | FV7: A | FW7: 90548.8 | FX7: 5 | FY7: A | FZ7: 112956.15 | GA7: A | GB7: 112956.15 | GC7: 5 | GE7: 4514.95 | GG7: 0 | GI7: 4514.95
A8: 6 | C8: 0 | E8: 295691.13 | F8: A | G8: 218616.14 | I8: 0 | K8: 572661.75 | M8: 0 | O8: 6299.13 | P8: A | Q8: 7421 | S8: 15165.11 | U8: 0 | W8: 5007.71 | Y8: 15964.31 | AA8: 8651.7 | AB8: A | AC8: 1145477.98 | AD8: 6 | AF8: 5156.17 | AH8: 337719.31 | AJ8: 55307.85 | AL8: 133327.92 | AN8: 1080420.13 | AO8: A | AP8: 12268.39 | AR8: 13785.87 | AS8: A | AT8: 1637985.63 | AU8: 6 | AW8: 226426.53 | AY8: 161162.88 | BA8: 0 | BB8: A | BC8: 127868.66 | BD8: A | BE8: 10339.64 | BG8: 3607.28 | BI8: 9818.15 | BK8: 5442.02 | BM8: 5117.78 | BO8: 41855.39 | BQ8: 3302.32 | BS8: 66180.31 | BU8: 0 | BV8: A | BW8: 29609.79 | BY8: 97254.7 | BZ8: A | CA8: 787985.46 | CB8: 6 | CD8: 555458.44 | CE8: A | CF8: 12563.53 | CH8: 0.23 | CJ8: 94091.21 | CL8: 48024.83 | CN8: 108772.16 | CP8: 31467.43 | CR8: 6978.84 | CT8: 89699.05 | CV8: 5917.56 | CX8: 18565.85 | CZ8: 6748.94 | DA8: A | DB8: 978288.06 | DC8: 6 | DD8: A | DE8: 154951.13 | DG8: 3836.91 | DI8: 12953.53 | DK8: 2132.51 | DL8: A | DM8: 54372.29 | DO8: 0 | DQ8: 13549.58 | DS8: 710755.75 | DT8: A | DU8: 952551.7 | DV8: 6 | DX8: 0 | DZ8: 59487.4 | EB8: 8037.03 | ED8: 5716.18 | EF8: 290614.53 | EH8: 18105.7 | EJ8: 9532.62 | EL8: 391493.46 | EM8: 6 | EN8: A | EO8: 2306.71 | EP8: A | EQ8: 0.4 | ER8: A | ES8: 699.76 | ET8: A | EU8: 2919.05 | EV8: A | EW8: 3064.24 | EX8: A | EY8: 3089.53 | EZ8: A | FA8: 12079.69 | FB8: 6 | FD8: 49968.32 | FF8: 0 | FH8: 49968.32 | FI8: 6 | FJ8: A | FK8: 9074.92 | FL8: A | FM8: 9074.92 | FN8: 6 | FP8: 25120.55 | FQ8: 6 | FR8: A | FS8: 20404.17 | FU8: 0 | FV8: A | FW8: 20404.17 | FX8: 6 | FY8: A | FZ8: 100805.34 | GA8: A | GB8: 100805.34 | GC8: 6 | GD8: A | GE8: 3676.49 | GG8: 0 | GH8: A | GI8: 3676.49
A9: 7 | C9: 0 | E9: 326058.88 | F9: A | G9: 247421.09 | I9: 0 | K9: 655742.44 | M9: 0 | O9: 7162.25 | P9: A | Q9: 8495.28 | S9: 16740.89 | U9: 0 | W9: 5816.3 | Y9: 19352.03 | AA9: 9883.96 | AB9: A | AC9: 1296673.12 | AD9: 7 | AF9: 5939.48 | AH9: 387654.72 | AJ9: 60051.89 | AL9: 137802.95 | AN9: 1222450.25 | AO9: A | AP9: 13352.31 | AR9: 15840.69 | AS9: A | AT9: 1843092.29 | AU9: 7 | AW9: 258883.02 | AY9: 183772.13 | BA9: 0 | BC9: 138831.55 | BE9: 12094.93 | BG9: 4010.85 | BI9: 11394 | BK9: 6136 | BM9: 5637.08 | BO9: 48250.59 | BQ9: 3939.86 | BS9: 75617.01 | BT9: A | BU9: 54493.7 | BV9: A | BW9: 30972.91 | BY9: 109234.45 | BZ9: A | CA9: 943268.08 | CB9: 7 | CD9: 625839.13 | CE9: A | CF9: 13744.67 | CH9: 0.42 | CJ9: 107324.55 | CL9: 51897.08 | CN9: 130026.44 | CP9: 37773.27 | CR9: 8053.61 | CT9: 105671.73 | CV9: 7179.43 | CX9: 22563.58 | CZ9: 7797.14 | DA9: A | DB9: 1117871.04 | DC9: 7 | DD9: A | DE9: 176076.61 | DG9: 4296.56 | DI9: 14853.72 | DK9: 2409.43 | DL9: A | DM9: 114292.56 | DN9: A | DO9: 131395.14 | DQ9: 15180.3 | DS9: 771824.63 | DT9: A | DU9: 1230328.95 | DV9: 7 | DX9: 0 | DZ9: 67315.63 | EB9: 9179.72 | ED9: 6501.91 | EF9: 334202.91 | EH9: 20127.31 | EJ9: 10566.81 | EL9: 447894.29 | EM9: 7 | EN9: A | EO9: 2254.71 | EP9: A | EQ9: 3.82 | ER9: A | ES9: 722.76 | ET9: A | EU9: 3379.05 | EV9: A | EW9: 3421.57 | EX9: A | EY9: 3044.27 | EZ9: A | FA9: 12826.18 | FB9: 7 | FD9: 60222.89 | FF9: 0 | FH9: 60222.89 | FI9: 7 | FK9: 9040.72 | FM9: 9040.72 | FN9: 7 | FP9: 32733.01 | FQ9: 7 | FR9: A | FS9: 103843.78 | FU9: 0 | FV9: A | FW9: 103843.78 | FX9: 7 | FY9: A | FZ9: 109775.12 | GA9: A | GB9: 109775.12 | GC9: 7 | GD9: A | GE9: 4453.4 | GG9: 0 | GH9: A | GI9: 4453.4
A10: 8 | C10: 0 | E10: 295809.84 | F10: AB | G10: 259807.22 | H10: B | I10: 0 | J10: B | K10: 700255.06 | L10: B | M10: 0 | N10: B | O10: 7500.35 | P10: AB | Q10: 9119.1 | R10: B | S10: 17743.64 | T10: B | U10: 0 | V10: B | W10: 6101.27 | X10: B | Y10: 20388.16 | Z10: B | AA10: 10574.35 | AB10: AB | AC10: 1327299 | AD10: 8 | AE10: B | AF10: 6292.15 | AG10: B | AH10: 412009.25 | AI10: B | AJ10: 62475.34 | AK10: B | AL10: 138262.38 | AM10: B | AN10: 1296829.25 | AO10: AB | AP10: 14847.61 | AQ10: B | AR10: 16968.07 | AS10: AB | AT10: 1947684.05 | AU10: 8 | AV10: AB | AW10: 270139.13 | AX10: AB | AY10: 191656.39 | AZ10: B | BA10: 0 | BB10: AB | BC10: 124646.88 | BD10: AB | BE10: 12934 | BF10: B | BG10: 4166.48 | BH10: B | BI10: 11451.3 | BJ10: B | BK10: 6358.49 | BL10: B | BM10: 5959.45 | BN10: B | BO10: 51994.74 | BP10: B | BQ10: 4314.15 | BR10: B | BS10: 78890.03 | BT10: AB | BU10: 52392.3 | BV10: AB | BW10: 40560.3 | BX10: B | BY10: 115469.81 | BZ10: AB | CA10: 970933.45 | CB10: 8 | CC10: B | CD10: 658290.25 | CE10: AB | CF10: 13604 | CG10: B | CH10: 0.79 | CI10: B | CJ10: 113803.55 | CK10: B | CL10: 52757.14 | CM10: B | CN10: 136632.56 | CO10: B | CP10: 38118.69 | CQ10: B | CR10: 8535.98 | CS10: B | CT10: 109260.51 | CV10: 7604.62 | CW10: B | CX10: 23090.69 | CY10: B | CZ10: 8538.38 | DA10: AB | DB10: 1170237.16 | DC10: 8 | DD10: B | DE10: 188049.66 | DF10: B | DG10: 4592.56 | DH10: B | DI10: 15894.7 | DJ10: B | DK10: 2536.69 | DL10: AB | DM10: 49194.02 | DN10: AB | DO10: 198824.88 | DP10: B | DQ10: 15994.3 | DR10: B | DS10: 824243.13 | DT10: AB | DU10: 1299329.93 | DV10: 8 | DW10: B | DX10: 0 | DY10: B | DZ10: 70600.77 | EA10: B | EB10: 9664.64 | EC10: B | ED10: 6931.18 | EE10: B | EF10: 354245.34 | EG10: B | EH10: 21491.1 | EI10: B | EJ10: 11118.05 | EK10: B | EL10: 474051.09 | EM10: 8 | EN10: AB | EO10: 3062.52 | EP10: AB | EQ10: 16.19 | ER10: AB | ES10: 457.56 | ET10: AB | EU10: 3620.98 | EV10: AB | EW10: 3483.87 | EX10: AB | EY10: 3036.21 | EZ10: AB | FA10: 13677.33 | FB10: 8 | FC10: B | FD10: 85760.49 | FE10: B | FF10: 0.01 | FG10: B | FH10: 85760.5 | FI10: 8 | FJ10: ABC | FK10: 10292.74 | FL10: ABC | FM10: 10292.74 | FN10: 8 | FO10: B | FP10: 35295.93 | FQ10: 8 | FR10: AB | FS10: 36263.18 | FT10: B | FU10: 0 | FV10: AB | FW10: 36263.18 | FX10: 8 | FY10: AB | FZ10: 126175.06 | GA10: AB | GB10: 126175.06 | GC10: 8 | GD10: AB | GE10: 3405.11 | GF10: B | GG10: 0 | GH10: AB | GI10: 3405.11
A11: 9 | C11: 0 | E11: 283068.75 | F11: A | G11: 257800.8 | I11: 0 | K11: 674739.69 | M11: 0 | O11: 7468.08 | P11: A | Q11: 8950.08 | S11: 17220.23 | U11: 0 | W11: 5942.53 | Y11: 18750.73 | AA11: 10561.97 | AB11: A | AC11: 1284502.87 | AD11: 9 | AF11: 6195.83 | AH11: 411995.72 | AJ11: 62392.67 | AL11: 138345.91 | AN11: 1287856.5 | AO11: A | AP11: 69666.86 | AR11: 16908.59 | AS11: A | AT11: 1993362.08 | AU11: 9 | AW11: 269188.53 | AY11: 190890.02 | BA11: 0 | BC11: 140911.86 | BD11: A | BE11: 12814.47 | BG11: 4221.24 | BH11: A | BI11: 10166.94 | BK11: 6083.09 | BM11: 5864.57 | BO11: 50509.53 | BQ11: 4268.23 | BS11: 76779.9 | BU11: 0 | BW11: 0 | BY11: 113736.97 | BZ11: A | CA11: 885435.35 | CB11: 9 | CD11: 647934.25 | CE11: A | CF11: 12102.17 | CH11: 0.54 | CJ11: 111604.79 | CL11: 52552.38 | CN11: 134404.05 | CP11: 37277.59 | CR11: 8552.05 | CT11: 109803.91 | CV11: 7553.07 | CX11: 22442.08 | CZ11: 8810.43 | DA11: A | DB11: 1153037.31 | DC11: 9 | DE11: 182721.53 | DG11: 4541.81 | DI11: 14781.7 | DK11: 2497.6 | DL11: A | DM11: 24234.03 | DN11: A | DO11: 33609.58 | DQ11: 15593.8 | DS11: 806750.38 | DT11: A | DU11: 1084730.43 | DV11: 9 | DW11: A | DX11: 0 | DY11: A | DZ11: 69934.56 | EB11: 9343.89 | ED11: 6838.53 | EF11: 350379.06 | EH11: 21091.24 | EJ11: 11008.69 | EK11: A | EL11: 468595.96 | EM11: 9 | EN11: A | EO11: 2594.69 | EP11: A | EQ11: 43.62 | ER11: A | ES11: 775.81 | ET11: A | EU11: 3430.02 | EV11: A | EW11: 3279.1 | EX11: A | EY11: 2687.28 | EZ11: A | FA11: 12810.51 | FB11: 9 | FD11: 57323.46 | FF11: 0 | FH11: 57323.46 | FI11: 9 | FK11: 10422.08 | FM11: 10422.08 | FN11: 9 | FP11: 36316.42 | FQ11: 9 | FR11: A | FS11: 19258.02 | FU11: 0 | FV11: A | FW11: 19258.02 | FX11: 9 | FY11: A | FZ11: 122398.23 | GA11: A | GB11: 122398.23 | GC11: 9 | GE11: 4694.11 | GG11: 0 | GI11: 4694.11
A12: 10 | C12: 0 | E12: 258710.11 | F12: A | G12: 252479.34 | I12: 0 | K12: 639289.13 | M12: 0 | N12: A | O12: 7266.97 | P12: A | Q12: 8742.17 | S12: 16618.41 | U12: 0 | W12: 5783.3 | Y12: 17608.2 | AA12: 10175.59 | AB12: A | AC12: 1216673.22 | AD12: 10 | AF12: 5840.92 | AH12: 379930.22 | AJ12: 58658.45 | AL12: 139418.61 | AN12: 1186156.25 | AO12: A | AP12: 20059.99 | AR12: 15990.79 | AS12: A | AT12: 1806055.22 | AU12: 10 | AW12: 259518.8 | AY12: 184043.19 | BA12: 0 | BC12: 120491.2 | BD12: A | BE12: 11723.13 | BF12: A | BG12: 4123.53 | BI12: 9170.91 | BK12: 5972.09 | BM12: 5510.73 | BO12: 47765.77 | BQ12: 3916.94 | BS12: 73774.38 | BT12: A | BU12: 9814.53 | BW12: 0 | BY12: 104356.26 | BZ12: A | CA12: 840181.44 | CB12: 10 | CD12: 631906.94 | CE12: A | CF12: 12214.23 | CH12: 0.18 | CJ12: 107779.89 | CL12: 55013.14 | CN12: 134260.75 | CP12: 37255.05 | CR12: 8584.62 | CT12: 109758.04 | CV12: 7533 | CX12: 22594.11 | CZ12: 8806.75 | DA12: A | DB12: 1135706.7 | DC12: 10 | DE12: 170924.52 | DG12: 4322.84 | DI12: 14012.61 | DK12: 2347.16 | DL12: A | DM12: 17899.08 | DN12: A | DO12: 35232.48 | DQ12: 15000.22 | DS12: 753400.56 | DT12: A | DU12: 1013139.48 | DV12: 10 | DX12: 0 | DZ12: 66937.95 | EB12: 8880.15 | ED12: 6280.07 | EF12: 324903.09 | EH12: 19842.46 | EJ12: 10395.37 | EL12: 437239.08 | EM12: 10 | EN12: A | EO12: 1957.63 | EP12: A | EQ12: 30.83 | ER12: A | ES12: 520.14 | ET12: A | EU12: 3056.78 | EV12: A | EW12: 3676.88 | EX12: A | EY12: 2762.7 | EZ12: A | FA12: 12004.94 | FB12: 10 | FD12: 61350.63 | FF12: 0 | FH12: 61350.63 | FI12: 10 | FJ12: A | FK12: 7384.39 | FL12: A | FM12: 7384.39 | FN12: 10 | FP12: 33244.33 | FQ12: 10 | FR12: A | FS12: 4013.37 | FU12: 0 | FV12: A | FW12: 4013.37 | FX12: 10 | FY12: A | FZ12: 106749.32 | GA12: A | GB12: 106749.32 | GC12: 10 | GD12: A | GE12: 1307 | GG12: 0 | GH12: A | GI12: 1307
A13: 11 | C13: 0 | E13: 230519.25 | F13: A | G13: 231893.03 | I13: 0 | K13: 598220.06 | M13: 0 | O13: 6951.33 | Q13: 8249.64 | S13: 15376.45 | U13: 0 | W13: 5328.61 | Y13: 15605.89 | AA13: 9432.99 | AB13: A | AC13: 1121577.26 | AD13: 11 | AF13: 5412.55 | AH13: 336770.22 | AJ13: 56747.17 | AL13: 136250.42 | AN13: 1038637.63 | AO13: A | AP13: 19533.63 | AR13: 14651.49 | AS13: A | AT13: 1608003.1 | AU13: 11 | AW13: 231455.88 | AY13: 164226.88 | BA13: 0 | BC13: 127628.23 | BD13: A | BE13: 11069.56 | BG13: 3899.41 | BI13: 8929.79 | BK13: 5620.7 | BM13: 5221.21 | BO13: 44590.27 | BQ13: 3664.4 | BS13: 68578.48 | BU13: 0 | BW13: 0 | BY13: 98942.8 | BZ13: A | CA13: 773827.61 | CB13: 11 | CD13: 560364.5 | CE13: A | CF13: 13757.17 | CH13: 0.22 | CJ13: 96853.23 | CL13: 55981.57 | CN13: 126573.33 | CP13: 34663.02 | CR13: 8460.04 | CT13: 104915.02 | CV13: 7210.81 | CX13: 21217.04 | CZ13: 8373.05 | DA13: A | DB13: 1038369.01 | DC13: 11 | DE13: 151513.19 | DG13: 4009.99 | DI13: 12232.95 | DK13: 2271.05 | DL13: A | DM13: 12260.17 | DO13: 0 | DQ13: 14199.63 | DS13: 688754.69 | DT13: A | DU13: 885241.67 | DV13: 11 | DX13: 0 | DZ13: 60147.55 | EA13: A | EB13: 7986.8 | ED13: 5477.79 | EF13: 287253.66 | EH13: 17753.46 | EJ13: 9286.25 | EK13: A | EL13: 387905.51 | EM13: 11 | EN13: A | EO13: 372.08 | EP13: A | EQ13: 10.29 | ER13: A | ES13: 176.95 | ET13: A | EU13: 1631.93 | EV13: A | EW13: 2996.81 | EX13: A | EY13: 2116.83 | EZ13: A | FA13: 7304.88 | FB13: 11 | FD13: 11933.33 | FF13: 0 | FH13: 11933.33 | FI13: 11 | FK13: 6000.08 | FM13: 6000.08 | FN13: 11 | FP13: 21350.54 | FQ13: 11 | FR13: A | FS13: 45568.17 | FU13: 0 | FV13: A | FW13: 45568.17 | FX13: 11 | FY13: A | FZ13: 117351.54 | GA13: A | GB13: 117351.54 | GC13: 11 | GD13: A | GE13: 1432.8 | GG13: 0 | GH13: A | GI13: 1432.8
A14: 12 | C14: 0 | E14: 192032.69 | F14: A | G14: 225152.02 | I14: 0 | K14: 564405.19 | M14: 0 | O14: 6624.05 | P14: A | Q14: 7772.87 | S14: 14363.53 | U14: 0 | W14: 5142.2 | Y14: 15287.58 | AA14: 9147.42 | AB14: A | AC14: 1039927.54 | AD14: 12 | AF14: 5108.01 | AH14: 330498.41 | AJ14: 53022.32 | AL14: 134482.83 | AN14: 1035817.44 | AO14: A | AP14: 27080.21 | AR14: 14558.95 | AS14: A | AT14: 1600568.16 | AU14: 12 | AW14: 226930 | AY14: 160939.56 | BA14: 0 | BC14: 106932.13 | BD14: A | BE14: 10898.74 | BG14: 3776.35 | BI14: 7763.3 | BK14: 5617.19 | BL14: A | BM14: 5167.06 | BN14: A | BO14: 43646.95 | BQ14: 3285.64 | BS14: 65983.45 | BU14: 0 | BW14: 0 | BY14: 92060.73 | BZ14: A | CA14: 733001.1 | CB14: 12 | CD14: 540631.44 | CE14: A | CF14: 11972.61 | CH14: 0.14 | CJ14: 91374.09 | CL14: 54107.1 | CN14: 119275.54 | CP14: 33199.61 | CR14: 8014.7 | CT14: 99964.75 | CV14: 6658.3 | CX14: 19517.28 | CZ14: 7801.83 | DA14: A | DB14: 992517.4 | DC14: 12 | DE14: 143172.14 | DG14: 3888.93 | DI14: 11334.82 | DK14: 2170.09 | DL14: A | DM14: 14607.7 | DO14: 0 | DQ14: 13598.14 | DS14: 658447.25 | DT14: A | DU14: 847219.06 | DV14: 12 | DX14: 0 | DZ14: 57397.21 | EB14: 7687.84 | ED14: 5208.03 | EF14: 273531.25 | EH14: 16434.5 | EJ14: 8690.5 | EL14: 368949.34 | EM14: 12 | EN14: A | EO14: 491.41 | EP14: A | EQ14: 3.68 | ER14: A | ES14: 118.24 | ET14: A | EU14: 1213.1 | EV14: A | EW14: 2500.86 | EX14: A | EY14: 1621.24 | EZ14: A | FA14: 5948.52 | FB14: 12 | FD14: 11746.07 | FF14: 0 | FH14: 11746.07 | FI14: 12 | FK14: 4690.85 | FM14: 4690.85 | FN14: 12 | FP14: 17529.5 | FQ14: 12 | FR14: A | FS14: 34068.24 | FU14: 0 | FV14: A | FW14: 34068.24 | FX14: 12 | FY14: A | FZ14: 112512.53 | GA14: A | GB14: 112512.53 | GC14: 12 | GD14: A | GE14: 1298.21 | GG14: 0 | GH14: A | GI14: 1298.21
A15: 13 | C15: 0 | E15: 159550.52 | G15: 215771.44 | I15: 0 | K15: 547906.94 | M15: 0 | O15: 6240.06 | Q15: 7303.94 | S15: 13974.46 | U15: 0 | W15: 4871.64 | Y15: 14565.97 | AA15: 8503.49 | AC15: 978688.46 | AD15: 13 | AF15: 4984.09 | AH15: 320104.19 | AJ15: 51317.14 | AL15: 132480.08 | AN15: 930613 | AO15: A | AP15: 20711.86 | AR15: 13618.47 | AS15: A | AT15: 1473828.83 | AU15: 13 | AW15: 214875.58 | AY15: 152479.98 | BA15: 0 | BC15: 121188.92 | BD15: A | BE15: 9987.3 | BG15: 3516.9 | BI15: 8611.35 | BK15: 5320.04 | BM15: 4946.99 | BO15: 40359.23 | BQ15: 3237.14 | BS15: 63170.62 | BT15: A | BU15: 2103.63 | BV15: A | BW15: 153368.28 | BY15: 88156.65 | BZ15: A | CA15: 871322.61 | CB15: 13 | CD15: 534012.25 | CE15: A | CF15: 8673.32 | CH15: 0.02 | CJ15: 89322.27 | CL15: 53321.46 | CN15: 114347.3 | CP15: 31590.76 | CR15: 7520.41 | CT15: 92069.98 | CV15: 6378.97 | CX15: 18904.54 | CZ15: 7477.21 | DA15: A | DB15: 963618.48 | DC15: 13 | DD15: A | DE15: 138933.84 | DG15: 3685.49 | DI15: 11834.47 | DJ15: A | DK15: 2056.79 | DL15: A | DM15: 38955.65 | DO15: 0 | DQ15: 13045.64 | DS15: 641269.19 | DT15: A | DU15: 849781.07 | DV15: 13 | DX15: 0 | DZ15: 56768.2 | EB15: 7555.5 | ED15: 5079.85 | EF15: 265832.16 | EH15: 16442.27 | EJ15: 8653.4 | EL15: 360331.37 | EM15: 13 | EN15: A | EO15: 1652.58 | EP15: A | EQ15: 5.72 | ER15: A | ES15: 350.55 | ET15: A | EU15: 2448.83 | EV15: A | EW15: 2521.99 | EX15: A | EY15: 2689.8 | EZ15: A | FA15: 9669.47 | FB15: 13 | FD15: 46254.68 | FF15: 0 | FH15: 46254.69 | FI15: 13 | FK15: 11390.14 | FM15: 11390.14 | FN15: 13 | FP15: 25282.26 | FQ15: 13 | FR15: A | FS15: 60257.66 | FU15: 0 | FV15: A | FW15: 60257.66 | FX15: 13 | FY15: A | FZ15: 117195.34 | GA15: A | GB15: 117195.34 | GC15: 13 | GE15: 1297.62 | GG15: 0 | GI15: 1297.62
A16: 14 | C16: 0 | E16: 150501 | G16: 216336.3 | I16: 0 | K16: 554643.13 | M16: 0 | O16: 6403.78 | P16: A | Q16: 7409.36 | S16: 14165.89 | U16: 0 | W16: 5009.28 | Y16: 15928.29 | AA16: 8895.57 | AB16: A | AC16: 979292.6 | AD16: 14 | AF16: 5140.17 | AH16: 327197.59 | AJ16: 50706.64 | AL16: 132198.77 | AN16: 927493.75 | AO16: A | AP16: 21146.21 | AR16: 13888.07 | AS16: A | AT16: 1477771.21 | AU16: 14 | AW16: 214076.8 | AY16: 151908.36 | BA16: 0 | BB16: A | BC16: 123800.66 | BD16: A | BE16: 10328.87 | BF16: A | BG16: 3552.52 | BI16: 9586.11 | BK16: 5528.04 | BM16: 4989.22 | BN16: A | BO16: 40721.82 | BQ16: 3146.7 | BS16: 64258.78 | BU16: 0 | BV16: A | BW16: 78.5 | BY16: 92668.52 | BZ16: A | CA16: 724644.88 | CB16: 14 | CD16: 530873.63 | CE16: A | CF16: 17032.6 | CH16: 0 | CJ16: 91660.74 | CL16: 51673.27 | CN16: 116767.43 | CP16: 33192.86 | CR16: 7826.21 | CT16: 91442.44 | CV16: 6601.59 | CX16: 19328.13 | CZ16: 7676.69 | DA16: A | DB16: 974075.57 | DC16: 14 | DD16: A | DE16: 134597.91 | DF16: A | DG16: 3840.54 | DI16: 11544.26 | DK16: 2082.83 | DL16: A | DM16: 78609.98 | DO16: 0 | DQ16: 13207.1 | DS16: 648565.94 | DT16: A | DU16: 892448.55 | DV16: 14 | DX16: 0 | DZ16: 58457.16 | EB16: 8049.53 | ED16: 5427.86 | EE16: ABC | EF16: 277665.06 | EH16: 17625.98 | EJ16: 9168.89 | EK16: ABC | EL16: 376394,47* | EM16: 14 | EN16: A | EO16: 3159.51 | EP16: A | EQ16: 5.75 | ER16: A | ES16: 742.05 | ET16: A | EU16: 2546.08 | EV16: A | EW16: 2249.58 | EX16: A | EY16: 2333.38 | EZ16: A | FA16: 11036.35 | FB16: 14 | FD16: 128219.78 | FF16: 18.9 | FH16: 128238.68 | FI16: 14 | FK16: 8429.28 | FM16: 8429.28 | FN16: 14 | FP16: 26646.19 | FQ16: 14 | FR16: A | FS16: 268.97 | FU16: 0 | FV16: A | FW16: 268.97 | FX16: 14 | FY16: A | FZ16: 102700.65 | GA16: A | GB16: 102700.65 | GC16: 14 | GE16: 1287.97 | GG16: 0 | GI16: 1287.97
A17: 15 | B17: A | C17: 0 | D17: A | E17: 149473.5 | G17: 204268.17 | I17: 0 | K17: 521264.03 | M17: 0 | O17: 6070.87 | P17: A | Q17: 7048.42 | S17: 13399.14 | U17: 0 | W17: 4793.11 | Y17: 14278.84 | AA17: 8414.1 | AB17: A | AC17: 929010.18 | AD17: 15 | AF17: 4939.92 | AH17: 298273.06 | AJ17: 49570.03 | AL17: 124656.52 | AN17: 885041.06 | AO17: A | AP17: 21102.07 | AQ17: A | AR17: 13119.33 | AS17: A | AT17: 1396702 | AU17: 15 | AW17: 200841.98 | AY17: 142472.42 | BA17: 0 | BC17: 116739.23 | BD17: A | BE17: 9946.81 | BF17: A | BG17: 3301.51 | BI17: 8546.51 | BK17: 5392.64 | BM17: 4834.15 | BO17: 38493.33 | BQ17: 3137.71 | BS17: 60467.54 | BU17: 0 | BW17: 0 | BY17: 87100.66 | BZ17: A | CA17: 681274.51 | CB17: 15 | CD17: 489199 | CE17: A | CF17: 12421.54 | CH17: 0 | CJ17: 85406.6 | CL17: 49052.49 | CN17: 108639.93 | CP17: 29276.04 | CR17: 7561.86 | CT17: 83875.08 | CV17: 6201.94 | CX17: 17525.29 | CZ17: 7201.82 | DA17: A | DB17: 896361.59 | DC17: 15 | DD17: A | DE17: 124581.37 | DG17: 3653.11 | DI17: 11442.23 | DK17: 1964.47 | DL17: A | DM17: 12565.29 | DO17: 0 | DQ17: 12596.76 | DR17: A C | DS17: 592538.63 | DT17: A C | DU17: 759341,86* | DV17: 15 | DX17: 0 | DZ17: 55370.9 | EB17: 7676.31 | ED17: 5303.73 | EF17: 267355.16 | EH17: 16576.8 | EJ17: 8680.68 | EL17: 360963.58 | EM17: 15 | EN17: A | EO17: 1949.16 | EP17: A | EQ17: 5.59 | ER17: A | ES17: 427.06 | ET17: A | EU17: 4698.76 | EV17: A | EW17: 2001.21 | EX17: A | EY17: 1797.87 | EZ17: A | FA17: 10879.66 | FB17: 15 | FD17: 130244.2 | FF17: 20.53 | FH17: 130264.73 | FI17: 15 | FK17: 4813.43 | FM17: 4813.43 | FN17: 15 | FP17: 22802.01 | FQ17: 15 | FR17: A | FS17: 3838.99 | FU17: 0 | FV17: A | FW17: 3838.99 | FX17: 15 | FY17: A | FZ17: 108764.16 | GA17: A | GB17: 108764.16 | GC17: 15 | GD17: A | GE17: 1206.92 | GF17: A | GG17: 15.29 | GH17: A | GI17: 1222.21
A18: 16 | C18: 0 | E18: 150848.73 | F18: AB | G18: 225707.81 | H18: B | I18: 0 | J18: B | K18: 572864.06 | L18: B | M18: 0 | N18: B | O18: 6252.89 | P18: AB | Q18: 7361.9 | R18: B | S18: 13968.95 | T18: B | U18: 0 | V18: B | W18: 4966.11 | X18: B | Y18: 15717.97 | Z18: B | AA18: 8878.46 | AB18: AB | AC18: 1006566.9 | AD18: 16 | AE18: B | AF18: 4972.33 | AG18: B | AH18: 327348.44 | AI18: B | AJ18: 52467.02 | AK18: B | AL18: 134911 | AM18: B | AN18: 1002147.38 | AO18: B | AP18: 21555.74 | AQ18: B | AR18: 13801.03 | AS18: B | AT18: 1557202.93 | AU18: 16 | AV18: B | AW18: 222755.78 | AX18: B | AY18: 157918.33 | AZ18: B | BA18: 0 | BB18: B | BC18: 125658.73 | BD18: AB | BE18: 10332.26 | BF18: B | BG18: 3726.19 | BH18: B | BI18: 8643.66 | BJ18: B | BK18: 5480.75 | BL18: B | BM18: 5002.12 | BN18: B | BO18: 42136.21 | BP18: B | BQ18: 3477.28 | BR18: B | BS18: 67717.3 | BT18: B | BU18: 0 | BV18: B | BW18: 0 | BX18: B | BY18: 94474.8 | BZ18: AB | CA18: 747323.42 | CB18: 16 | CC18: ABC | CD18: 565739.5 | CE18: A | CF18: 12209.54 | CH18: 0 | CI18: B | CJ18: 95412.16 | CK18: B | CL18: 52148.35 | CM18: B | CN18: 116064.92 | CO18: B | CP18: 34790.3 | CQ18: B | CR18: 7535.09 | CS18: B | CT18: 95831.8 | CV18: 6579.55 | CW18: B | CX18: 20216.32 | CY18: B | CZ18: 7396.64 | DA18: ABC | DB18: 1013924,18* | DC18: 16 | DD18: B | DE18: 150093.36 | DF18: B | DG18: 3721.22 | DH18: B | DI18: 12627.02 | DJ18: B | DK18: 2058.36 | DL18: AB | DM18: 18670.63 | DN18: B | DO18: 0 | DP18: B | DQ18: 13027.76 | DR18: B | DS18: 674265.5 | DT18: AB | DU18: 874463.85 | DV18: 16 | DW18: B | DX18: 0 | DY18: B | DZ18: 56889.07 | EA18: B | EB18: 7727.5 | EC18: B | ED18: 5395.75 | EE18: B | EF18: 274561.97 | EG18: B | EH18: 17076.28 | EI18: B | EJ18: 8786.8 | EK18: B | EL18: 370437.36 | EM18: 16 | EN18: AB | EO18: 1712.12 | EP18: AB | EQ18: 29.56 | ER18: AB | ES18: 256.41 | ET18: AB | EU18: 2648.03 | EV18: AB | EW18: 2229.63 | EX18: AB | EY18: 1979.4 | EZ18: AB | FA18: 8855.14 | FB18: 16 | FC18: B | FD18: 117153.64 | FE18: B | FF18: 2.92 | FG18: B | FH18: 117156.56 | FI18: 16 | FJ18: B | FK18: 8657.52 | FL18: B | FM18: 8657.52 | FN18: 16 | FO18: B | FP18: 27378.49 | FQ18: 16 | FR18: AB | FS18: 303.9 | FT18: B | FU18: 0 | FV18: AB | FW18: 303.9 | FX18: 16 | FY18: AB | FZ18: 105339.63 | GA18: AB | GB18: 105339.63 | GC18: 16 | GD18: AB | GE18: 1123.21 | GF18: AB | GG18: 0.22 | GH18: AB | GI18: 1123.44
A19: 17 | C19: 0 | E19: 150128.33 | F19: A | G19: 222492.72 | I19: 0 | K19: 544906.5 | M19: 0 | O19: 6634.81 | P19: A | Q19: 7647.57 | S19: 14041.25 | U19: 0 | W19: 5159.94 | Y19: 15450.6 | AA19: 8865.26 | AB19: A | AC19: 975326.98 | AD19: 17 | AF19: 5137.85 | AG19: A C | AH19: 325460.25 | AJ19: 51766.34 | AL19: 131900.92 | AN19: 933935.38 | AP19: 31155.44 | AR19: 14112.79 | AS19: A C | AT19: 1493468,97* | AU19: 17 | AW19: 217808.41 | AY19: 154349.77 | BA19: 0 | BC19: 100250.21 | BD19: A | BE19: 10800.56 | BG19: 3747.31 | BI19: 7841.71 | BK19: 5617.51 | BM19: 5255.06 | BO19: 42703.61 | BQ19: 3500.3 | BS19: 65369.77 | BU19: 0 | BW19: 0 | BY19: 92165.61 | BZ19: A | CA19: 709409.84 | CB19: 17 | CD19: 529134.38 | CE19: AB | CF19: 12821.9 | CG19: B | CH19: 0 | CJ19: 88359.89 | CL19: 49819.97 | CN19: 113134.46 | CP19: 33048.46 | CR19: 7704.5 | CT19: 88077.62 | CV19: 6462.44 | CX19: 19072.4 | CZ19: 7313.9 | DA19: AB | DB19: 954949.93 | DC19: 17 | DD19: A | DE19: 137545.53 | DG19: 3847.7 | DI19: 11664.3 | DJ19: A | DK19: 2064.37 | DM19: 24352.3 | DO19: 0 | DQ19: 13376.93 | DS19: 655817.5 | DT19: A | DU19: 848668.63 | DV19: 17 | DX19: 0 | DZ19: 58184.44 | EB19: 7952.62 | ED19: 5630 | EF19: 282334.34 | EH19: 17749.04 | EJ19: 9064.07 | EL19: 380914.51 | EM19: 17 | EN19: A C | EO19: 1788.71 | EP19: A | EQ19: 100.36 | ER19: A | ES19: 462.99 | ET19: A | EU19: 2483.75 | EV19: A | EW19: 2317.53 | EX19: A | EY19: 1779.37 | EZ19: A C | FA19: 8932.72 | FB19: 17 | FD19: 113698.46 | FF19: 7.87 | FH19: 113706.33 | FI19: 17 | FK19: 6727.04 | FM19: 6727.04 | FN19: 17 | FP19: 29198.98 | FQ19: 17 | FR19: A | FS19: 88244.7 | FU19: 0 | FV19: A | FW19: 88244.7 | FX19: 17 | FY19: A | FZ19: 116653.25 | GA19: A | GB19: 116653.25 | GC19: 17 | GE19: 1319.17 | GG19: 0 | GI19: 1319.17
A20: 18 | C20: 0 | E20: 143501.94 | G20: 190670.97 | I20: 0 | K20: 494740.97 | M20: 0 | O20: 6075.35 | Q20: 6952.65 | S20: 12771.44 | U20: 0 | W20: 4775.69 | Y20: 13628.32 | AA20: 8295.72 | AC20: 881413.04 | AD20: 18 | AF20: 4769.1 | AH20: 285885.59 | AJ20: 46401.99 | AL20: 126260.96 | AN20: 841855.88 | AO20: A | AP20: 26292.68 | AR20: 12908.02 | AS20: A | AT20: 1344374.22 | AU20: 18 | AW20: 192281.45 | AY20: 136252.91 | BA20: 0 | BC20: 110958.92 | BD20: A | BE20: 9530.01 | BG20: 3429.47 | BI20: 7404.81 | BK20: 5118.71 | BM20: 4816.55 | BO20: 37773.42 | BQ20: 3005.34 | BS20: 58849.65 | BU20: 0 | BW20: 0 | BY20: 84475.92 | BZ20: A | CA20: 653897.17 | CB20: 18 | CD20: 464458 | CE20: A | CF20: 10519.19 | CH20: 0 | CJ20: 78093.45 | CL20: 49010.44 | CN20: 105533.36 | CP20: 28438.28 | CR20: 7211.26 | CT20: 81511.69 | CV20: 6010.36 | CX20: 16603.24 | CZ20: 6901.8 | DA20: A | DB20: 854291.05 | DC20: 18 | DD20: A | DE20: 116184.25 | DG20: 3622.99 | DI20: 10264.04 | DK20: 1952.08 | DL20: A | DM20: 9607.9 | DO20: 0 | DQ20: 12565.84 | DS20: 613463.5 | DT20: A | DU20: 767660.6 | DV20: 18 | DX20: 0 | DZ20: 53000.72 | EA20: A | EB20: 7332.05 | ED20: 5113.12 | EF20: 254805.92 | EH20: 16150.22 | EJ20: 8371.47 | EK20: A | EL20: 344773.5 | EM20: 18 | EN20: A | EO20: 1441.75 | EP20: A | EQ20: 49.75 | ER20: A | ES20: 291.89 | ET20: A | EU20: 1458.98 | EV20: A | EW20: 1868.24 | EX20: A | EY20: 1337.6 | EZ20: A | FA20: 6448.21 | FB20: 18 | FC20: A | FD20: 6693.06 | FF20: 0 | FG20: A | FH20: 6693.06 | FI20: 18 | FJ20: A | FK20: 1064.6 | FL20: A | FM20: 1064.6 | FN20: 18 | FP20: 17263.68 | FQ20: 18 | FR20: A | FS20: 2480.91 | FU20: 0 | FV20: A | FW20: 2480.91 | FX20: 18 | FY20: A | FZ20: 100269.6 | GA20: A | GB20: 100269.6 | GC20: 18 | GE20: 1266.35 | GG20: 0 | GI20: 1266.35
A21: 19 | C21: 0 | E21: 138853.52 | G21: 177065.98 | I21: 0 | K21: 455474.34 | M21: 0 | O21: 5463.47 | Q21: 6285.55 | S21: 11856.46 | U21: 0 | W21: 4383.79 | Y21: 12495.56 | AA21: 7723.47 | AC21: 819602.15 | AD21: 19 | AF21: 4303.38 | AH21: 261758.7 | AJ21: 45392.75 | AL21: 123325.13 | AN21: 754046.06 | AO21: A | AP21: 24112.04 | AR21: 11903.34 | AS21: A | AT21: 1224841.4 | AU21: 19 | AW21: 174849.17 | AY21: 124679.81 | BA21: 0 | BC21: 108414.84 | BE21: 8608.48 | BG21: 3108.76 | BI21: 6174.13 | BK21: 4772.42 | BM21: 4345.44 | BO21: 35356.35 | BQ21: 2409.29 | BS21: 53861.75 | BU21: 0 | BW21: 0 | BY21: 83805.23 | CA21: 610385.68 | CB21: 19 | CD21: 433655.56 | CE21: A | CF21: 13643.3 | CH21: 0 | CI21: A | CJ21: 75351.3 | CL21: 49744.2 | CN21: 96475.63 | CP21: 25303.73 | CR21: 6741.05 | CT21: 69794.88 | CV21: 5518.05 | CX21: 14755.4 | CZ21: 6293.53 | DA21: A | DB21: 797276.62 | DC21: 19 | DE21: 108064.38 | DF21: A | DG21: 3274.21 | DI21: 9419.49 | DK21: 1803.18 | DL21: A | DM21: 8800.59 | DO21: 0 | DQ21: 11849.94 | DS21: 556225.75 | DT21: A | DU21: 699437.55 | DV21: 19 | DX21: 0 | DZ21: 49240.71 | EB21: 6876.13 | ED21: 4684.97 | EF21: 239424.19 | EH21: 15017.99 | EJ21: 8020.47 | EL21: 323264.46 | EM21: 19 | EN21: A | EO21: 1068.25 | EP21: A | EQ21: 37.82 | ER21: A | ES21: 209.35 | ET21: A | EU21: 1270.72 | EV21: A | EW21: 1333.21 | EX21: A | EY21: 1263.29 | EZ21: A | FA21: 5182.64 | FB21: 19 | FD21: 2094.61 | FF21: 0 | FH21: 2094.61 | FI21: 19 | FJ21: A | FK21: 7196.73 | FL21: A | FM21: 7196.73 | FN21: 19 | FP21: 13680.66 | FQ21: 19 | FR21: A | FS21: 39332.63 | FU21: 0 | FV21: A | FW21: 39332.63 | FX21: 19 | FY21: A | FZ21: 106545.12 | GA21: A | GB21: 106545.12 | GC21: 19 | GE21: 1255.76 | GG21: 0 | GI21: 1255.76
A22: 20 | C22: 0 | E22: 144079.72 | G22: 175326.84 | I22: 0 | J22: A C | K22: 438670.75 | M22: 0 | N22: A | O22: 5001.99 | P22: A | Q22: 5958.63 | S22: 10111.38 | U22: 0 | W22: 3846.34 | Y22: 12447.39 | AA22: 6992.36 | AB22: A C | AC22: 802435,41* | AD22: 20 | AF22: 3974.26 | AH22: 249002.06 | AJ22: 43701.4 | AL22: 119529.45 | AN22: 734909.06 | AP22: 29484.29 | AQ22: A | AR22: 10974.33 | AS22: A | AT22: 1191574.86 | AU22: 20 | AW22: 165359.33 | AY22: 118868.23 | BA22: 0 | BC22: 101838.28 | BE22: 7910.34 | BG22: 2924.16 | BI22: 6000.42 | BK22: 4437.58 | BM22: 4167.58 | BO22: 32383.44 | BQ22: 2427.01 | BS22: 49769.26 | BT22: A | BU22: 97638.98 | BV22: A | BW22: 25840.17 | BY22: 84139.59 | BZ22: A | CA22: 703704.36 | CB22: 20 | CD22: 403819.75 | CE22: A | CF22: 12935.11 | CH22: 0 | CJ22: 69640.73 | CL22: 45846.53 | CN22: 86688.53 | CP22: 23186.86 | CR22: 5819.07 | CT22: 63580.81 | CV22: 4784.63 | CX22: 13486.65 | CZ22: 5540.83 | DA22: A | DB22: 735329.5 | DC22: 20 | DD22: A | DE22: 106817.87 | DF22: A | DG22: 3024.43 | DI22: 9273.89 | DJ22: A | DK22: 1658.34 | DL22: A | DM22: 8951.5 | DO22: 0 | DQ22: 11041.4 | DS22: 555207.75 | DT22: A | DU22: 695975.18 | DV22: 20 | DX22: 0 | DZ22: 45508.05 | EB22: 6409.49 | ED22: 4403.1 | EF22: 218279.78 | EH22: 14071.12 | EJ22: 7502.93 | EL22: 296174.47 | EM22: 20 | EN22: A | EO22: 1571.38 | EP22: A | EQ22: 22.42 | ER22: A | ES22: 373.77 | ET22: A | EU22: 2524.55 | EV22: A | EW22: 1718.58 | EX22: A | EY22: 1608.6 | EZ22: A | FA22: 7819.31 | FB22: 20 | FC22: A | FD22: 103489.73 | FF22: 13.85 | FG22: A | FH22: 103503.57 | FI22: 20 | FK22: 6509.02 | FM22: 6509.02 | FN22: 20 | FP22: 21149.7 | FQ22: 20 | FR22: A | FS22: 51708.48 | FU22: 0 | FV22: A | FW22: 51708.48 | FX22: 20 | FY22: A | FZ22: 108473.1 | GA22: A | GB22: 108473.1 | GC22: 20 | GD22: A | GE22: 961.93 | GF22: A | GG22: 1.23 | GH22: A | GI22: 963.17
A23: 21 | C23: 0 | E23: 141085.11 | G23: 174417.39 | I23: 0 | K23: 443260.84 | M23: 0 | N23: A | O23: 4999.87 | Q23: 5972 | S23: 11421.55 | U23: 0 | W23: 3974.54 | Y23: 12165.91 | AA23: 7035.72 | AB23: A | AC23: 804332.93 | AD23: 21 | AF23: 3999.56 | AH23: 252053.7 | AJ23: 43553.54 | AL23: 116018.36 | AN23: 741270.25 | AO23: A | AP23: 17151.82 | AR23: 11094.34 | AS23: A | AT23: 1185141.58 | AU23: 21 | AW23: 160821.25 | AY23: 116052.59 | BA23: 0 | BC23: 100836.41 | BD23: A | BE23: 7897.41 | BG23: 2867.74 | BI23: 6077.99 | BK23: 4339.69 | BM23: 3953.17 | BO23: 31685.23 | BQ23: 2340 | BS23: 48345.3 | BT23: A | BU23: 54.96 | BV23: A | BW23: 26503.04 | BY23: 77590.31 | BZ23: A | CA23: 589365.1 | CB23: 21 | CD23: 406123.28 | CE23: A | CF23: 12209.93 | CH23: 0 | CJ23: 68035.3 | CL23: 48514.03 | CN23: 90337.98 | CP23: 24232.24 | CR23: 5557.7 | CT23: 64596.6 | CV23: 4924.82 | CX23: 14339.72 | CZ23: 5896.31 | DA23: A | DB23: 744767.91 | DC23: 21 | DD23: A | DE23: 102794.82 | DG23: 3078.19 | DI23: 8877.77 | DK23: 1656.2 | DL23: A | DM23: 4024.01 | DO23: 0 | DQ23: 10783.65 | DS23: 536679.31 | DT23: A | DU23: 667893.95 | DV23: 21 | DX23: 0 | DZ23: 45190.3 | EB23: 6407.35 | ED23: 4337.69 | EF23: 214596.5 | EH23: 14028.45 | EJ23: 7583.67 | EL23: 292143.96 | EM23: 21 | EN23: A | EO23: 2044.93 | EP23: A | EQ23: 8.87 | ER23: A | ES23: 550.13 | ET23: A | EU23: 1916.4 | EV23: A | EW23: 2120.66 | EX23: A | EY23: 1758.18 | EZ23: A | FA23: 8399.18 | FB23: 21 | FD23: 130458.14 | FF23: 26.92 | FH23: 130485.06 | FI23: 21 | FK23: 3810.48 | FM23: 3810.48 | FN23: 21 | FP23: 20222.11 | FQ23: 21 | FR23: ABC | FS23: 81527.74 | FT23: ABC | FU23: 0 | FV23: ABC | FW23: 81527.74 | FX23: 21 | FY23: A | FZ23: 101377.01 | GA23: A | GB23: 101377.01 | GC23: 21 | GE23: 0 | GF23: A | GG23: 0.09 | GH23: A | GI23: 0.09
A24: 22 | C24: 0 | E24: 143001.8 | G24: 168407.34 | I24: 0 | K24: 439643.31 | M24: 0 | O24: 5051.48 | P24: A | Q24: 5990.98 | S24: 10886.58 | U24: 0 | W24: 3938.06 | Y24: 11788.11 | AA24: 7188.46 | AB24: A | AC24: 795896.11 | AD24: 22 | AF24: 3980.07 | AH24: 254192.77 | AJ24: 43305.87 | AL24: 116917.1 | AN24: 695875.13 | AP24: 26178.11 | AR24: 10987.72 | AT24: 1151436.76 | AU24: 22 | AW24: 158904.39 | AY24: 114674.62 | BA24: 0 | BC24: 97694.02 | BD24: A | BE24: 7949.81 | BG24: 2880.27 | BI24: 6521.35 | BK24: 4471.85 | BM24: 4054.46 | BO24: 31437.38 | BQ24: 2614.9 | BS24: 50519.94 | BU24: 0 | BW24: 0 | BY24: 72730.55 | BZ24: A | CA24: 554453.54 | CB24: 22 | CD24: 407740.28 | CE24: AB | CF24: 0 | CG24: ABC | CH24: 7754.97 | CJ24: 71137.97 | CL24: 49470.91 | CN24: 91217.33 | CP24: 24817.56 | CR24: 6052.43 | CT24: 64497.7 | CV24: 5051.24 | CX24: 14700.74 | CZ24: 5849.99 | DA24: ABC | DB24: 748291,11* | DC24: 22 | DD24: A | DE24: 102911.37 | DG24: 2988.78 | DI24: 8917.3 | DK24: 3062.6 | DM24: 0 | DO24: 0 | DQ24: 10580.65 | DS24: 552439.69 | DT24: A | DU24: 680900.39 | DV24: 22 | DX24: 0 | DZ24: 44614.89 | EB24: 6274.16 | ED24: 4222.17 | EF24: 209605.22 | EH24: 13417.69 | EJ24: 7366.89 | EL24: 285501.01 | EM24: 22 | EN24: A | EO24: 1850.17 | EP24: A | EQ24: 25.08 | ER24: A | ES24: 853.08 | ET24: A | EU24: 1992.04 | EV24: A | EW24: 1966.69 | EX24: A | EY24: 2028.44 | EZ24: A | FA24: 8715.5 | FB24: 22 | FC24: A | FD24: 5737.3 | FE24: A | FF24: 147183.53 | FG24: A | FH24: 152920.83 | FI24: 22 | FK24: 3412.11 | FM24: 3412.11 | FN24: 22 | FP24: 19047.92 | FQ24: 22 | FR24: A | FS24: 99906.57 | FU24: 0 | FV24: A | FW24: 99906.57 | FX24: 22 | FY24: A | FZ24: 111528.38 | GA24: A | GB24: 111528.38 | GC24: 22 | GD24: A | GE24: 1140.09 | GG24: 0 | GH24: A | GI24: 1140.09
A25: 23 | C25: 0 | E25: 143066.83 | G25: 170906.19 | I25: 0 | K25: 450537.94 | M25: 0 | O25: 5084.3 | Q25: 6184.86 | S25: 11094.2 | U25: 0 | W25: 4106.44 | Y25: 12276.57 | AA25: 7362.8 | AC25: 810620.13 | AD25: 23 | AF25: 4158.4 | AH25: 257401.33 | AJ25: 40493.46 | AL25: 116627.77 | AN25: 690783.81 | AO25: A | AP25: 21033.08 | AR25: 11299.44 | AS25: A | AT25: 1141797.3 | AU25: 23 | AW25: 162187.42 | AY25: 117118.41 | BA25: 0 | BC25: 103209.79 | BD25: A | BE25: 8223.34 | BG25: 2852.89 | BI25: 7142.9 | BK25: 4502.94 | BM25: 4028.92 | BO25: 32072.78 | BQ25: 2332.21 | BS25: 50767.91 | BU25: 0 | BW25: 0 | BY25: 73628.61 | BZ25: A | CA25: 568068.12 | CB25: 23 | CD25: 410115.91 | CF25: 0 | CG25: A | CH25: 11433.53 | CJ25: 69234 | CL25: 42192.87 | CN25: 91532.66 | CP25: 24391.84 | CR25: 6260.82 | CT25: 65250.22 | CV25: 5139.73 | CX25: 14387.92 | CZ25: 5979.96 | DA25: A | DB25: 745919.45 | DC25: 23 | DD25: A | DE25: 103318.35 | DG25: 3095.2 | DI25: 9378.75 | DK25: 3442.81 | DL25: A | DM25: 2136.69 | DO25: 0 | DQ25: 10573.93 | DS25: 548427.69 | DT25: A | DU25: 680373.41 | DV25: 23 | DX25: 0 | DZ25: 45354.29 | EB25: 6603.41 | ED25: 4361.23 | EF25: 213479.77 | EH25: 13894.66 | EJ25: 7479.2 | EL25: 291172.56 | EM25: 23 | EN25: A | EO25: 1660.33 | EP25: A | EQ25: 1.91 | ER25: A | ES25: 462.17 | ET25: A | EU25: 2098.94 | EV25: A | EW25: 1835.79 | EX25: A | EY25: 1703.92 | EZ25: A | FA25: 7763.06 | FB25: 23 | FD25: 0.02 | FF25: 117590.2 | FH25: 117590.22 | FI25: 23 | FK25: 4492.01 | FM25: 4492.01 | FN25: 23 | FP25: 19309.37 | FQ25: 23 | FR25: A | FS25: 40624.32 | FT25: A | FU25: 0 | FV25: A | FW25: 40624.32 | FX25: 23 | FY25: ABC | FZ25: 100012.16 | GA25: ABC | GB25: 100012.16 | GC25: 23 | GD25: A | GE25: 1093.97 | GG25: 0 | GH25: A | GI25: 1093.97
A26: 24 | B26: B | C26: 0 | D26: B | E26: 136801.69 | F26: B | G26: 157220.48 | H26: B | I26: 0 | J26: B | K26: 394835.81 | L26: B | M26: 0 | N26: B | O26: 4684.76 | P26: B | Q26: 5623.87 | R26: B | S26: 9603.49 | T26: B | U26: 0 | V26: B | W26: 3792.02 | X26: B | Y26: 11219.7 | Z26: B | AA26: 6736.48 | AB26: B | AC26: 730518.29 | AD26: 24 | AE26: B | AF26: 3671.34 | AG26: B | AH26: 220529.31 | AI26: B | AJ26: 38732.39 | AK26: B | AL26: 106393.61 | AM26: B | AN26: 657392.88 | AO26: B | AP26: 80652.74 | AQ26: B | AR26: 10244.5 | AS26: B | AT26: 1117616.76 | AU26: 24 | AV26: B | AW26: 222656.67 | AX26: AB | AY26: 18805.28 | AZ26: B | BA26: 0 | BB26: B | BC26: 92311.58 | BD26: B | BE26: 7619.14 | BF26: B | BG26: 2734.73 | BH26: B | BI26: 4681.7 | BJ26: B | BK26: 4099.06 | BL26: B | BM26: 3937.65 | BN26: B | BO26: 29078 | BP26: B | BQ26: 2059.93 | BR26: B | BS26: 43890.94 | BT26: AB | BU26: 5452.6 | BV26: B | BW26: 0 | BX26: B | BY26: 66725.34 | BZ26: AB | CA26: 504052.62 | CB26: 24 | CC26: B | CD26: 356776.53 | CE26: B | CF26: 0 | CG26: AB | CH26: 13795.33 | CI26: B | CJ26: 57837.05 | CK26: B | CL26: 31075.59 | CM26: B | CN26: 85166.69 | CO26: B | CP26: 21373.71 | CQ26: B | CR26: 5624.67 | CS26: B | CT26: 61582.65 | CV26: 4789.15 | CW26: B | CX26: 12268.52 | CY26: B | CZ26: 5630.57 | DA26: AB | DB26: 655920.46 | DC26: 24 | DD26: B | DE26: 88078.05 | DF26: B | DG26: 2891.96 | DH26: B | DI26: 8072.55 | DJ26: B | DK26: 3099.83 | DL26: AB | DM26: 37571.92 | DN26: B | DO26: 0 | DP26: B | DQ26: 9927.29 | DR26: B | DS26: 483851.53 | DT26: AB | DU26: 633493.14 | DV26: 24 | DW26: B | DX26: 0 | DY26: B | DZ26: 39780.78 | EA26: B | EB26: 6063.57 | EC26: B | ED26: 3999.86 | EE26: B | EF26: 188907.34 | EG26: B | EH26: 12596.79 | EI26: B | EJ26: 6976.43 | EK26: B | EL26: 258324.78 | EM26: 24 | EN26: AB | EO26: 1628.05 | EP26: AB | EQ26: 2.08 | ER26: AB | ES26: 402 | ET26: ABC | EU26: 2150.69 | EV26: AB | EW26: 1852.1 | EX26: AB | EY26: 1844.12 | EZ26: ABC | FA26: 7879.03 | FB26: 24 | FC26: B | FD26: 0 | FE26: B | FF26: 98923.49 | FG26: B | FH26: 98923.5 | FI26: 24 | FJ26: AB | FK26: 2341.03 | FL26: AB | FM26: 2341.03 | FN26: 24 | FO26: B | FP26: 18453.87 | FQ26: 24 | FR26: AB | FS26: 5595.81 | FT26: B | FU26: 0 | FV26: AB | FW26: 5595.81 | FX26: 24 | FY26: AB | FZ26: 92020.65 | GA26: AB | GB26: 92020.65 | GC26: 24 | GD26: AB | GE26: 1144.83 | GF26: AB | GG26: 0.29 | GH26: AB | GI26: 1145.12
A27: 25 | C27: 0 | E27: 138029.3 | G27: 177370.91 | I27: 0 | K27: 464588.16 | M27: 0 | O27: 4869.97 | Q27: 5785.5 | S27: 11030.15 | U27: 0 | W27: 3822.47 | Y27: 12503.27 | AA27: 6936.28 | AC27: 824936.01 | AD27: 25 | AF27: 3816.58 | AH27: 251635.08 | AJ27: 43277.55 | AL27: 116746.6 | AN27: 722663.25 | AP27: 114426.69 | AR27: 10502.28 | AT27: 1263068.02 | AU27: 25 | AW27: 269615.13 | AY27: 0 | BA27: 0 | BC27: 102575.6 | BD27: A | BE27: 7886.08 | BG27: 2838.81 | BI27: 7578.44 | BK27: 4342.63 | BM27: 4114.48 | BO27: 31672.44 | BQ27: 2453.81 | BR27: A | BS27: 52187.5 | BU27: 0 | BW27: 0 | BY27: 76551.37 | BZ27: A | CA27: 561816.27 | CB27: 25 | CC27: A | CD27: 426625.91 | CF27: 0 | CG27: A | CH27: 16029.32 | CJ27: 70676.37 | CL27: 38248.36 | CN27: 90548.52 | CP27: 25427 | CR27: 5762.94 | CT27: 64804.43 | CV27: 5093.39 | CX27: 14664.34 | CZ27: 5801.53 | DA27: A | DB27: 763682.11 | DC27: 25 | DD27: A | DE27: 106490.81 | DG27: 3039.47 | DI27: 9613.94 | DK27: 2567.09 | DM27: 113014.34 | DO27: 0 | DQ27: 10235.71 | DS27: 549342.19 | DT27: A | DU27: 794303.55 | DV27: 25 | DX27: 0 | DZ27: 44620.14 | EB27: 6094.1 | ED27: 4256.5 | EF27: 203892.44 | EH27: 13348.64 | EJ27: 7163.11 | EL27: 279374.93 | EM27: 25 | EN27: A | EO27: 1668.02 | EP27: A | EQ27: 8.7 | ER27: A | ES27: 147.76 | ET27: A | EU27: 1151.95 | EV27: A | EW27: 2135.66 | EX27: A | EY27: 1502.4 | EZ27: A | FA27: 6614.48 | FB27: 25 | FD27: 0 | FE27: A | FF27: 3406.31 | FG27: A | FH27: 3406.31 | FI27: 25 | FJ27: A | FK27: 1289.67 | FL27: A | FM27: 1289.67 | FN27: 25 | FP27: 11980.84 | FQ27: 25 | FR27: A | FS27: 39302.46 | FU27: 0 | FV27: A | FW27: 39302.46 | FX27: 25 | FY27: A | FZ27: 106434.78 | GA27: A | GB27: 106434.78 | GC27: 25 | GD27: A | GE27: 442.93 | GF27: A | GG27: 1.27 | GH27: A | GI27: 444.2
A28: 26 | C28: 0 | E28: 141387.95 | G28: 186230.7 | I28: 0 | J28: A | K28: 457504.56 | M28: 0 | O28: 5131.74 | Q28: 6173.45 | S28: 11351.75 | U28: 0 | W28: 4093.42 | Y28: 13308.81 | AA28: 7384.05 | AB28: A | AC28: 832566.44 | AD28: 26 | AF28: 4088.48 | AH28: 259232.7 | AJ28: 43973.46 | AL28: 122026.21 | AN28: 744284.81 | AP28: 104369.51 | AR28: 11154.66 | AT28: 1289129.84 | AU28: 26 | AW28: 287834.75 | AY28: 0 | BA28: 0 | BC28: 101348.2 | BD28: A | BE28: 8374.16 | BG28: 2970.59 | BI28: 6150.28 | BK28: 4583.8 | BM28: 4363.38 | BO28: 33430.05 | BQ28: 2447.59 | BS28: 55311.26 | BU28: 0 | BW28: 0 | BY28: 76400.11 | BZ28: A | CA28: 583214.17 | CB28: 26 | CC28: A | CD28: 439752.75 | CF28: 0 | CG28: A | CH28: 14075.11 | CJ28: 75583.03 | CL28: 37606.71 | CN28: 93327.55 | CP28: 26019.34 | CR28: 6049.97 | CT28: 65759.44 | CV28: 5288.24 | CX28: 15066.76 | CZ28: 6029.92 | DA28: A | DB28: 784558.82 | DC28: 26 | DD28: A | DE28: 111099.6 | DG28: 3216.14 | DI28: 9808.42 | DK28: 1656.28 | DM28: 118342.62 | DO28: 0 | DQ28: 10748.09 | DS28: 558620.5 | DT28: A | DU28: 813491.65 | DV28: 26 | DX28: 0 | DZ28: 46118.81 | EB28: 6694.84 | ED28: 4392.54 | EF28: 216285.77 | EH28: 13933.13 | EJ28: 7494.69 | EL28: 294919.78 | EM28: 26 | EN28: A | EO28: 1032.08 | EP28: A | EQ28: 7.48 | ER28: A | ES28: 366 | ET28: A | EU28: 889.82 | EV28: A | EW28: 1237.78 | EX28: A | EY28: 1273.63 | EZ28: A | FA28: 4806.79 | FB28: 26 | FD28: 0 | FF28: 1805.41 | FH28: 1805.41 | FI28: 26 | FJ28: A | FK28: 3886.61 | FL28: A | FM28: 3886.61 | FN28: 26 | FP28: 9345.51 | FQ28: 26 | FR28: A | FS28: 42066.18 | FU28: 0 | FV28: A | FW28: 42066.18 | FX28: 26 | FY28: A | FZ28: 108770.88 | GA28: A | GB28: 108770.88 | GC28: 26 | GE28: 0 | GG28: 0 | GI28: 0
A29: 27 | C29: 0 | E29: 143824.8 | G29: 183347.16 | I29: 0 | K29: 445391.44 | M29: 0 | O29: 5146.43 | Q29: 6127.81 | S29: 11026.88 | U29: 0 | W29: 4073.78 | Y29: 12397.86 | AA29: 7318.62 | AC29: 818654.77 | AD29: 27 | AF29: 4085.75 | AH29: 263325.91 | AJ29: 44071.67 | AL29: 118863.71 | AN29: 707206.56 | AP29: 104776.98 | AR29: 11114.44 | AT29: 1253445.02 | AU29: 27 | AW29: 282504.91 | AY29: 0 | BA29: 0 | BC29: 97689.69 | BE29: 8201.85 | BG29: 2994.95 | BI29: 6436.06 | BJ29: A | BK29: 4442.42 | BM29: 4200.03 | BO29: 32028.64 | BQ29: 2212.89 | BS29: 53041.49 | BU29: 0 | BW29: 0 | BY29: 75882.7 | BZ29: A | CA29: 569635.63 | CB29: 27 | CC29: A | CD29: 421814.34 | CF29: 0 | CG29: A | CH29: 12026.55 | CJ29: 69500.48 | CL29: 36795.05 | CN29: 90714.39 | CP29: 24208.89 | CR29: 6140.34 | CT29: 62628.09 | CV29: 5047.56 | CX29: 13924.54 | CZ29: 5862.77 | DA29: A | DB29: 748663.02 | DC29: 27 | DD29: A | DE29: 110467.31 | DG29: 3194.78 | DI29: 8897.49 | DK29: 1732.36 | DM29: 109307.88 | DO29: 0 | DQ29: 10559.35 | DS29: 541909.19 | DT29: A | DU29: 786068.37 | DV29: 27 | DX29: 0 | DZ29: 44221.3 | EB29: 6461.78 | ED29: 4304.8 | EF29: 211410.89 | EH29: 13497.03 | EJ29: 7367.93 | EL29: 287263.73 | EM29: 27 | EN29: A | EO29: 1533.79 | EP29: A | EQ29: 27.37 | ER29: A | ES29: 662.35 | ET29: A | EU29: 2432.36 | EV29: A | EW29: 1858.89 | EX29: A | EY29: 1969.17 | EZ29: A | FA29: 8483.94 | FB29: 27 | FC29: A C | FD29: 0 | FE29: A C | FF29: 29323.76 | FG29: A C | FH29: 29323.76 | FI29: 27 | FJ29: A | FK29: 4531.06 | FL29: A | FM29: 4531.06 | FN29: 27 | FP29: 18581.08 | FQ29: 27 | FR29: A | FS29: 58215.19 | FU29: 0 | FV29: A | FW29: 58215.19 | FX29: 27 | FY29: A | FZ29: 110973.12 | GA29: A | GB29: 110973.12 | GC29: 27 | GE29: 0 | GG29: 0 | GI29: 0
